{"text_format":"3","workbook":"xlsx","n_sheets":4,"sheets":["SÚHRN ROZPOČTU ZA TENTO ROK","SÚHRN MESAČNÝCH VÝDAVKOV","ROZPIS VÝDAVKOV","CHARITA A SPONZOROVANIE"],"not_rendered":{"images":1,"defined_names":15},"read":"whole","date_system":"1900"}

{"sheet":"SÚHRN ROZPOČTU ZA TENTO ROK","index":0,"n_rows":16,"n_cols":7,"rows_kept":16,"merged":[[1,1,1,4]]}
[]
[null,"SKUTOČNÉ vs ROZPOČET DOSIAĽ ZA TENTO ROK",{"$nulls":3},"ROK",{"$f":"YEAR(TODAY())","v":2019}]
[null,"Kód G/L","Názov účtu","Skutočné","Rozpočet","Zostáva €","Zostáva %"]
[null,1000,"Reklama",{"$f":"SUMIF(SúhrnMesačnýchVýdavkov[Kód G/L],TabuľkaZaTentoRok[[#This Row],[Kód G/L]],SúhrnMesačnýchVýdavkov[Spolu])","v":{"v":0,"d":"0.00 EUR"}},{"v":100000,"d":"100,000.00 EUR"},{"$f":"IF(TabuľkaZaTentoRok[[#This Row],[Rozpočet]]=\"\",\"\",TabuľkaZaTentoRok[[#This Row],[Rozpočet]]-TabuľkaZaTentoRok[[#This Row],[Skutočné]])","v":{"v":100000,"d":"100,000.00 EUR"}},{"$f":"IFERROR(TabuľkaZaTentoRok[[#This Row],[Zostáva €]]/TabuľkaZaTentoRok[[#This Row],[Rozpočet]],\"\")","v":{"v":1,"d":"100.00%"}}]
[null,2000,"Kancelárske vybavenie",{"$f":"SUMIF(SúhrnMesačnýchVýdavkov[Kód G/L],TabuľkaZaTentoRok[[#This Row],[Kód G/L]],SúhrnMesačnýchVýdavkov[Spolu])","v":{"v":0,"d":"0.00 EUR"}},{"v":100000,"d":"100,000.00 EUR"},{"$f":"IF(TabuľkaZaTentoRok[[#This Row],[Rozpočet]]=\"\",\"\",TabuľkaZaTentoRok[[#This Row],[Rozpočet]]-TabuľkaZaTentoRok[[#This Row],[Skutočné]])","v":{"v":100000,"d":"100,000.00 EUR"}},{"$f":"IFERROR(TabuľkaZaTentoRok[[#This Row],[Zostáva €]]/TabuľkaZaTentoRok[[#This Row],[Rozpočet]],\"\")","v":{"v":1,"d":"100.00%"}}]
[null,3000,"Tlačiarne",{"$f":"SUMIF(SúhrnMesačnýchVýdavkov[Kód G/L],TabuľkaZaTentoRok[[#This Row],[Kód G/L]],SúhrnMesačnýchVýdavkov[Spolu])","v":{"v":0,"d":"0.00 EUR"}},{"v":100000,"d":"100,000.00 EUR"},{"$f":"IF(TabuľkaZaTentoRok[[#This Row],[Rozpočet]]=\"\",\"\",TabuľkaZaTentoRok[[#This Row],[Rozpočet]]-TabuľkaZaTentoRok[[#This Row],[Skutočné]])","v":{"v":100000,"d":"100,000.00 EUR"}},{"$f":"IFERROR(TabuľkaZaTentoRok[[#This Row],[Zostáva €]]/TabuľkaZaTentoRok[[#This Row],[Rozpočet]],\"\")","v":{"v":1,"d":"100.00%"}}]
[null,4000,"Náklady na server",{"$f":"SUMIF(SúhrnMesačnýchVýdavkov[Kód G/L],TabuľkaZaTentoRok[[#This Row],[Kód G/L]],SúhrnMesačnýchVýdavkov[Spolu])","v":{"v":0,"d":"0.00 EUR"}},{"v":100000,"d":"100,000.00 EUR"},{"$f":"IF(TabuľkaZaTentoRok[[#This Row],[Rozpočet]]=\"\",\"\",TabuľkaZaTentoRok[[#This Row],[Rozpočet]]-TabuľkaZaTentoRok[[#This Row],[Skutočné]])","v":{"v":100000,"d":"100,000.00 EUR"}},{"$f":"IFERROR(TabuľkaZaTentoRok[[#This Row],[Zostáva €]]/TabuľkaZaTentoRok[[#This Row],[Rozpočet]],\"\")","v":{"v":1,"d":"100.00%"}}]
[null,5000,"Jednorazové potreby",{"$f":"SUMIF(SúhrnMesačnýchVýdavkov[Kód G/L],TabuľkaZaTentoRok[[#This Row],[Kód G/L]],SúhrnMesačnýchVýdavkov[Spolu])","v":{"v":0,"d":"0.00 EUR"}},{"v":50000,"d":"50,000.00 EUR"},{"$f":"IF(TabuľkaZaTentoRok[[#This Row],[Rozpočet]]=\"\",\"\",TabuľkaZaTentoRok[[#This Row],[Rozpočet]]-TabuľkaZaTentoRok[[#This Row],[Skutočné]])","v":{"v":50000,"d":"50,000.00 EUR"}},{"$f":"IFERROR(TabuľkaZaTentoRok[[#This Row],[Zostáva €]]/TabuľkaZaTentoRok[[#This Row],[Rozpočet]],\"\")","v":{"v":1,"d":"100.00%"}}]
[null,6000,"Klientske výdavky",{"$f":"SUMIF(SúhrnMesačnýchVýdavkov[Kód G/L],TabuľkaZaTentoRok[[#This Row],[Kód G/L]],SúhrnMesačnýchVýdavkov[Spolu])","v":{"v":0,"d":"0.00 EUR"}},{"v":25000,"d":"25,000.00 EUR"},{"$f":"IF(TabuľkaZaTentoRok[[#This Row],[Rozpočet]]=\"\",\"\",TabuľkaZaTentoRok[[#This Row],[Rozpočet]]-TabuľkaZaTentoRok[[#This Row],[Skutočné]])","v":{"v":25000,"d":"25,000.00 EUR"}},{"$f":"IFERROR(TabuľkaZaTentoRok[[#This Row],[Zostáva €]]/TabuľkaZaTentoRok[[#This Row],[Rozpočet]],\"\")","v":{"v":1,"d":"100.00%"}}]
[null,7000,"Počítače",{"$f":"SUMIF(SúhrnMesačnýchVýdavkov[Kód G/L],TabuľkaZaTentoRok[[#This Row],[Kód G/L]],SúhrnMesačnýchVýdavkov[Spolu])","v":{"v":0,"d":"0.00 EUR"}},{"v":75000,"d":"75,000.00 EUR"},{"$f":"IF(TabuľkaZaTentoRok[[#This Row],[Rozpočet]]=\"\",\"\",TabuľkaZaTentoRok[[#This Row],[Rozpočet]]-TabuľkaZaTentoRok[[#This Row],[Skutočné]])","v":{"v":75000,"d":"75,000.00 EUR"}},{"$f":"IFERROR(TabuľkaZaTentoRok[[#This Row],[Zostáva €]]/TabuľkaZaTentoRok[[#This Row],[Rozpočet]],\"\")","v":{"v":1,"d":"100.00%"}}]
[null,8000,"Plán zdravotnej starostlivosti",{"$f":"SUMIF(SúhrnMesačnýchVýdavkov[Kód G/L],TabuľkaZaTentoRok[[#This Row],[Kód G/L]],SúhrnMesačnýchVýdavkov[Spolu])","v":{"v":0,"d":"0.00 EUR"}},{"v":65000,"d":"65,000.00 EUR"},{"$f":"IF(TabuľkaZaTentoRok[[#This Row],[Rozpočet]]=\"\",\"\",TabuľkaZaTentoRok[[#This Row],[Rozpočet]]-TabuľkaZaTentoRok[[#This Row],[Skutočné]])","v":{"v":65000,"d":"65,000.00 EUR"}},{"$f":"IFERROR(TabuľkaZaTentoRok[[#This Row],[Zostáva €]]/TabuľkaZaTentoRok[[#This Row],[Rozpočet]],\"\")","v":{"v":1,"d":"100.00%"}}]
[null,9000,"Náklady na budovu",{"$f":"SUMIF(SúhrnMesačnýchVýdavkov[Kód G/L],TabuľkaZaTentoRok[[#This Row],[Kód G/L]],SúhrnMesačnýchVýdavkov[Spolu])","v":{"v":0,"d":"0.00 EUR"}},{"v":125000,"d":"125,000.00 EUR"},{"$f":"IF(TabuľkaZaTentoRok[[#This Row],[Rozpočet]]=\"\",\"\",TabuľkaZaTentoRok[[#This Row],[Rozpočet]]-TabuľkaZaTentoRok[[#This Row],[Skutočné]])","v":{"v":125000,"d":"125,000.00 EUR"}},{"$f":"IFERROR(TabuľkaZaTentoRok[[#This Row],[Zostáva €]]/TabuľkaZaTentoRok[[#This Row],[Rozpočet]],\"\")","v":{"v":1,"d":"100.00%"}}]
[null,10000,"Marketing",{"$f":"SUMIF(SúhrnMesačnýchVýdavkov[Kód G/L],TabuľkaZaTentoRok[[#This Row],[Kód G/L]],SúhrnMesačnýchVýdavkov[Spolu])","v":{"v":0,"d":"0.00 EUR"}},{"v":100000,"d":"100,000.00 EUR"},{"$f":"IF(TabuľkaZaTentoRok[[#This Row],[Rozpočet]]=\"\",\"\",TabuľkaZaTentoRok[[#This Row],[Rozpočet]]-TabuľkaZaTentoRok[[#This Row],[Skutočné]])","v":{"v":100000,"d":"100,000.00 EUR"}},{"$f":"IFERROR(TabuľkaZaTentoRok[[#This Row],[Zostáva €]]/TabuľkaZaTentoRok[[#This Row],[Rozpočet]],\"\")","v":{"v":1,"d":"100.00%"}}]
[null,11000,"Charita",{"$f":"SUMIF(SúhrnMesačnýchVýdavkov[Kód G/L],TabuľkaZaTentoRok[[#This Row],[Kód G/L]],SúhrnMesačnýchVýdavkov[Spolu])","v":{"v":0,"d":"0.00 EUR"}},{"v":250000,"d":"250,000.00 EUR"},{"$f":"IF(TabuľkaZaTentoRok[[#This Row],[Rozpočet]]=\"\",\"\",TabuľkaZaTentoRok[[#This Row],[Rozpočet]]-TabuľkaZaTentoRok[[#This Row],[Skutočné]])","v":{"v":250000,"d":"250,000.00 EUR"}},{"$f":"IFERROR(TabuľkaZaTentoRok[[#This Row],[Zostáva €]]/TabuľkaZaTentoRok[[#This Row],[Rozpočet]],\"\")","v":{"v":1,"d":"100.00%"}}]
[null,12000,"Sponzorstvá",{"$f":"SUMIF(SúhrnMesačnýchVýdavkov[Kód G/L],TabuľkaZaTentoRok[[#This Row],[Kód G/L]],SúhrnMesačnýchVýdavkov[Spolu])","v":{"v":0,"d":"0.00 EUR"}},{"v":50000,"d":"50,000.00 EUR"},{"$f":"IF(TabuľkaZaTentoRok[[#This Row],[Rozpočet]]=\"\",\"\",TabuľkaZaTentoRok[[#This Row],[Rozpočet]]-TabuľkaZaTentoRok[[#This Row],[Skutočné]])","v":{"v":50000,"d":"50,000.00 EUR"}},{"$f":"IFERROR(TabuľkaZaTentoRok[[#This Row],[Zostáva €]]/TabuľkaZaTentoRok[[#This Row],[Rozpočet]],\"\")","v":{"v":1,"d":"100.00%"}}]
[null,"Celková hodnota",null,{"$f":"SUBTOTAL(109,TabuľkaZaTentoRok[Skutočné])","v":{"v":0,"d":"0.00 EUR"}},{"$f":"SUBTOTAL(109,TabuľkaZaTentoRok[Rozpočet])","v":{"v":1140000,"d":"1,140,000.00 EUR"}},{"$f":"SUBTOTAL(109,TabuľkaZaTentoRok[Zostáva €])","v":{"v":1140000,"d":"1,140,000.00 EUR"}},{"$f":"TabuľkaZaTentoRok[[#Totals],[Zostáva €]]/TabuľkaZaTentoRok[[#Totals],[Rozpočet]]","v":{"v":1,"d":"100.00%"}}]

{"sheet":"SÚHRN MESAČNÝCH VÝDAVKOV","index":1,"n_rows":18,"n_cols":17,"rows_kept":18,"merged":[[1,1,1,16]]}
[]
[null,"SÚHRN MESAČNÝCH VÝDAVKOV"]
[null,"V tejto bunke sa nachádza rýchly filter na filtrovanie údajov podľa názvu účtu.",null,{"$f":"DATEVALUE(\"1-JAN\"&_ROK)","v":{"v":43466,"d":"4346600.00%"}},{"$f":"DATEVALUE(\"1-FEB\"&_ROK)","v":{"v":43497,"d":"4349700.00%"}},{"$f":"DATEVALUE(\"1-MAR\"&_ROK)","v":{"v":43525,"d":"4352500.00%"}},{"$f":"DATEVALUE(\"1-APR\"&_ROK)","v":{"v":43556,"d":"4355600.00%"}},{"$f":"DATEVALUE(\"1-MÁJ\"&_ROK)","v":{"v":43586,"d":"4358600.00%"}},{"$f":"DATEVALUE(\"1-JÚN\"&_ROK)","v":{"v":43617,"d":"4361700.00%"}},{"$f":"DATEVALUE(\"1-JÚL\"&_ROK)","v":{"v":43647,"d":"4364700.00%"}},{"$f":"DATEVALUE(\"1-AUG\"&_ROK)","v":{"v":43678,"d":"4367800.00%"}},{"$f":"DATEVALUE(\"1-SEP\"&_ROK)","v":{"v":43709,"d":"4370900.00%"}},{"$f":"DATEVALUE(\"1-OKT\"&_ROK)","v":{"v":43739,"d":"4373900.00%"}},{"$f":"DATEVALUE(\"1-NOV\"&_ROK)","v":{"v":43770,"d":"4377000.00%"}},{"$f":"DATEVALUE(\"1-DEC\"&_ROK)","v":{"v":43800,"d":"4380000.00%"}}]
[{"$nulls":3},{"$f":"EOMONTH(D3,0)","v":{"v":43496,"d":"4349600.00%"}},{"$f":"EOMONTH(E3,0)","v":{"v":43524,"d":"4352400.00%"}},{"$f":"EOMONTH(F3,0)","v":{"v":43555,"d":"4355500.00%"}},{"$f":"EOMONTH(G3,0)","v":{"v":43585,"d":"4358500.00%"}},{"$f":"EOMONTH(H3,0)","v":{"v":43616,"d":"4361600.00%"}},{"$f":"EOMONTH(I3,0)","v":{"v":43646,"d":"4364600.00%"}},{"v":43677,"d":"4367700.00%"},{"v":43708,"d":"4370800.00%"},{"v":43738,"d":"4373800.00%"},{"v":43769,"d":"4376900.00%"},{"v":43799,"d":"4379900.00%"},{"v":43830,"d":"4383000.00%"}]
[null,"Kód G/L","Názov účtu","Január","Február","Marec","Apríl","Máj","Jún","Júl","August","September","Október","November","December","Spolu"," "]
[null,1000,"Reklama",{"$f":"SUMIFS(RozpisVýdavkov[Suma šeku],RozpisVýdavkov[Kód G/L],SúhrnMesačnýchVýdavkov[[#This Row],[Kód G/L]],RozpisVýdavkov[Dátum vystavenia faktúry],\">=\"&D$3,RozpisVýdavkov[Dátum vystavenia faktúry],\"<=\"&D$4)+SUMIFS(Ostatné[Suma šeku],Ostatné[Kód G/L],SúhrnMesačnýchVýdavkov[[#This Row],[Kód G/L]],Ostatné[Dátum žiadosti o šek],\">=\"&DATEVALUE(\" 1 \"&SúhrnMesačnýchVýdavkov[[#Headers],[Január]]&_ROK),Ostatné[Dátum žiadosti o šek],\"<=\"&D$4)","v":{"v":0,"d":"0.00 EUR"}},{"$f":"SUMIFS(RozpisVýdavkov[Suma šeku],RozpisVýdavkov[Kód G/L],SúhrnMesačnýchVýdavkov[[#This Row],[Kód G/L]],RozpisVýdavkov[Dátum vystavenia faktúry],\">=\"&E$3,RozpisVýdavkov[Dátum vystavenia faktúry],\"<=\"&E$4)+SUMIFS(Ostatné[Suma šeku],Ostatné[Kód G/L],SúhrnMesačnýchVýdavkov[[#This Row],[Kód G/L]],Ostatné[Dátum žiadosti o šek],\">=\"&DATEVALUE(\" 1 \"&SúhrnMesačnýchVýdavkov[[#Headers],[Február]]&_ROK),Ostatné[Dátum žiadosti o šek],\"<=\"&E$4)","v":{"v":0,"d":"0.00 EUR"}},{"$f":"SUMIFS(RozpisVýdavkov[Suma šeku],RozpisVýdavkov[Kód G/L],SúhrnMesačnýchVýdavkov[[#This Row],[Kód G/L]],RozpisVýdavkov[Dátum vystavenia faktúry],\">=\"&F$3,RozpisVýdavkov[Dátum vystavenia faktúry],\"<=\"&F$4)+SUMIFS(Ostatné[Suma šeku],Ostatné[Kód G/L],SúhrnMesačnýchVýdavkov[[#This Row],[Kód G/L]],Ostatné[Dátum žiadosti o šek],\">=\"&DATEVALUE(\" 1 \"&SúhrnMesačnýchVýdavkov[[#Headers],[Marec]]&_ROK),Ostatné[Dátum žiadosti o šek],\"<=\"&F$4)","v":{"v":0,"d":"0.00 EUR"}},{"$f":"SUMIFS(RozpisVýdavkov[Suma šeku],RozpisVýdavkov[Kód G/L],SúhrnMesačnýchVýdavkov[[#This Row],[Kód G/L]],RozpisVýdavkov[Dátum vystavenia faktúry],\">=\"&G$3,RozpisVýdavkov[Dátum vystavenia faktúry],\"<=\"&G$4)+SUMIFS(Ostatné[Suma šeku],Ostatné[Kód G/L],SúhrnMesačnýchVýdavkov[[#This Row],[Kód G/L]],Ostatné[Dátum žiadosti o šek],\">=\"&DATEVALUE(\" 1 \"&SúhrnMesačnýchVýdavkov[[#Headers],[Apríl]]&_ROK),Ostatné[Dátum žiadosti o šek],\"<=\"&G$4)","v":{"v":0,"d":"0.00 EUR"}},{"$f":"SUMIFS(RozpisVýdavkov[Suma šeku],RozpisVýdavkov[Kód G/L],SúhrnMesačnýchVýdavkov[[#This Row],[Kód G/L]],RozpisVýdavkov[Dátum vystavenia faktúry],\">=\"&H$3,RozpisVýdavkov[Dátum vystavenia faktúry],\"<=\"&H$4)+SUMIFS(Ostatné[Suma šeku],Ostatné[Kód G/L],SúhrnMesačnýchVýdavkov[[#This Row],[Kód G/L]],Ostatné[Dátum žiadosti o šek],\">=\"&DATEVALUE(\" 1 \"&SúhrnMesačnýchVýdavkov[[#Headers],[Máj]]&_ROK),Ostatné[Dátum žiadosti o šek],\"<=\"&H$4)","v":{"v":0,"d":"0.00 EUR"}},{"$f":"SUMIFS(RozpisVýdavkov[Suma šeku],RozpisVýdavkov[Kód G/L],SúhrnMesačnýchVýdavkov[[#This Row],[Kód G/L]],RozpisVýdavkov[Dátum vystavenia faktúry],\">=\"&I$3,RozpisVýdavkov[Dátum vystavenia faktúry],\"<=\"&I$4)+SUMIFS(Ostatné[Suma šeku],Ostatné[Kód G/L],SúhrnMesačnýchVýdavkov[[#This Row],[Kód G/L]],Ostatné[Dátum žiadosti o šek],\">=\"&DATEVALUE(\" 1 \"&SúhrnMesačnýchVýdavkov[[#Headers],[Jún]]&_ROK),Ostatné[Dátum žiadosti o šek],\"<=\"&I$4)","v":{"v":0,"d":"0.00 EUR"}},{"$f":"SUMIFS(RozpisVýdavkov[Suma šeku],RozpisVýdavkov[Kód G/L],SúhrnMesačnýchVýdavkov[[#This Row],[Kód G/L]],RozpisVýdavkov[Dátum vystavenia faktúry],\">=\"&J$3,RozpisVýdavkov[Dátum vystavenia faktúry],\"<=\"&J$4)+SUMIFS(Ostatné[Suma šeku],Ostatné[Kód G/L],SúhrnMesačnýchVýdavkov[[#This Row],[Kód G/L]],Ostatné[Dátum žiadosti o šek],\">=\"&DATEVALUE(\" 1 \"&SúhrnMesačnýchVýdavkov[[#Headers],[Júl]]&_ROK),Ostatné[Dátum žiadosti o šek],\"<=\"&J$4)","v":{"v":0,"d":"0.00 EUR"}},{"$f":"SUMIFS(RozpisVýdavkov[Suma šeku],RozpisVýdavkov[Kód G/L],SúhrnMesačnýchVýdavkov[[#This Row],[Kód G/L]],RozpisVýdavkov[Dátum vystavenia faktúry],\">=\"&K$3,RozpisVýdavkov[Dátum vystavenia faktúry],\"<=\"&K$4)+SUMIFS(Ostatné[Suma šeku],Ostatné[Kód G/L],SúhrnMesačnýchVýdavkov[[#This Row],[Kód G/L]],Ostatné[Dátum žiadosti o šek],\">=\"&DATEVALUE(\" 1 \"&SúhrnMesačnýchVýdavkov[[#Headers],[August]]&_ROK),Ostatné[Dátum žiadosti o šek],\"<=\"&K$4)","v":{"v":0,"d":"0.00 EUR"}},{"$f":"SUMIFS(RozpisVýdavkov[Suma šeku],RozpisVýdavkov[Kód G/L],SúhrnMesačnýchVýdavkov[[#This Row],[Kód G/L]],RozpisVýdavkov[Dátum vystavenia faktúry],\">=\"&L$3,RozpisVýdavkov[Dátum vystavenia faktúry],\"<=\"&L$4)+SUMIFS(Ostatné[Suma šeku],Ostatné[Kód G/L],SúhrnMesačnýchVýdavkov[[#This Row],[Kód G/L]],Ostatné[Dátum žiadosti o šek],\">=\"&DATEVALUE(\" 1 \"&SúhrnMesačnýchVýdavkov[[#Headers],[September]]&_ROK),Ostatné[Dátum žiadosti o šek],\"<=\"&L$4)","v":{"v":0,"d":"0.00 EUR"}},{"$f":"SUMIFS(RozpisVýdavkov[Suma šeku],RozpisVýdavkov[Kód G/L],SúhrnMesačnýchVýdavkov[[#This Row],[Kód G/L]],RozpisVýdavkov[Dátum vystavenia faktúry],\">=\"&M$3,RozpisVýdavkov[Dátum vystavenia faktúry],\"<=\"&M$4)+SUMIFS(Ostatné[Suma šeku],Ostatné[Kód G/L],SúhrnMesačnýchVýdavkov[[#This Row],[Kód G/L]],Ostatné[Dátum žiadosti o šek],\">=\"&DATEVALUE(\" 1 \"&SúhrnMesačnýchVýdavkov[[#Headers],[Október]]&_ROK),Ostatné[Dátum žiadosti o šek],\"<=\"&M$4)","v":{"v":0,"d":"0.00 EUR"}},{"$f":"SUMIFS(RozpisVýdavkov[Suma šeku],RozpisVýdavkov[Kód G/L],SúhrnMesačnýchVýdavkov[[#This Row],[Kód G/L]],RozpisVýdavkov[Dátum vystavenia faktúry],\">=\"&N$3,RozpisVýdavkov[Dátum vystavenia faktúry],\"<=\"&N$4)+SUMIFS(Ostatné[Suma šeku],Ostatné[Kód G/L],SúhrnMesačnýchVýdavkov[[#This Row],[Kód G/L]],Ostatné[Dátum žiadosti o šek],\">=\"&DATEVALUE(\" 1 \"&SúhrnMesačnýchVýdavkov[[#Headers],[November]]&_ROK),Ostatné[Dátum žiadosti o šek],\"<=\"&N$4)","v":{"v":0,"d":"0.00 EUR"}},{"$f":"SUMIFS(RozpisVýdavkov[Suma šeku],RozpisVýdavkov[Kód G/L],SúhrnMesačnýchVýdavkov[[#This Row],[Kód G/L]],RozpisVýdavkov[Dátum vystavenia faktúry],\">=\"&O$3,RozpisVýdavkov[Dátum vystavenia faktúry],\"<=\"&O$4)+SUMIFS(Ostatné[Suma šeku],Ostatné[Kód G/L],SúhrnMesačnýchVýdavkov[[#This Row],[Kód G/L]],Ostatné[Dátum žiadosti o šek],\">=\"&DATEVALUE(\" 1 \"&SúhrnMesačnýchVýdavkov[[#Headers],[December]]&_ROK),Ostatné[Dátum žiadosti o šek],\"<=\"&O$4)","v":{"v":0,"d":"0.00 EUR"}},{"$f":"SUM(SúhrnMesačnýchVýdavkov[[#This Row],[Január]:[December]])","v":{"v":0,"d":"0.00 EUR"}}]
[null,2000,"Kancelárske vybavenie",{"$f":"SUMIFS(RozpisVýdavkov[Suma šeku],RozpisVýdavkov[Kód G/L],SúhrnMesačnýchVýdavkov[[#This Row],[Kód G/L]],RozpisVýdavkov[Dátum vystavenia faktúry],\">=\"&D$3,RozpisVýdavkov[Dátum vystavenia faktúry],\"<=\"&D$4)+SUMIFS(Ostatné[Suma šeku],Ostatné[Kód G/L],SúhrnMesačnýchVýdavkov[[#This Row],[Kód G/L]],Ostatné[Dátum žiadosti o šek],\">=\"&DATEVALUE(\" 1 \"&SúhrnMesačnýchVýdavkov[[#Headers],[Január]]&_ROK),Ostatné[Dátum žiadosti o šek],\"<=\"&D$4)","v":{"v":0,"d":"0.00 EUR"}},{"$f":"SUMIFS(RozpisVýdavkov[Suma šeku],RozpisVýdavkov[Kód G/L],SúhrnMesačnýchVýdavkov[[#This Row],[Kód G/L]],RozpisVýdavkov[Dátum vystavenia faktúry],\">=\"&E$3,RozpisVýdavkov[Dátum vystavenia faktúry],\"<=\"&E$4)+SUMIFS(Ostatné[Suma šeku],Ostatné[Kód G/L],SúhrnMesačnýchVýdavkov[[#This Row],[Kód G/L]],Ostatné[Dátum žiadosti o šek],\">=\"&DATEVALUE(\" 1 \"&SúhrnMesačnýchVýdavkov[[#Headers],[Február]]&_ROK),Ostatné[Dátum žiadosti o šek],\"<=\"&E$4)","v":{"v":0,"d":"0.00 EUR"}},{"$f":"SUMIFS(RozpisVýdavkov[Suma šeku],RozpisVýdavkov[Kód G/L],SúhrnMesačnýchVýdavkov[[#This Row],[Kód G/L]],RozpisVýdavkov[Dátum vystavenia faktúry],\">=\"&F$3,RozpisVýdavkov[Dátum vystavenia faktúry],\"<=\"&F$4)+SUMIFS(Ostatné[Suma šeku],Ostatné[Kód G/L],SúhrnMesačnýchVýdavkov[[#This Row],[Kód G/L]],Ostatné[Dátum žiadosti o šek],\">=\"&DATEVALUE(\" 1 \"&SúhrnMesačnýchVýdavkov[[#Headers],[Marec]]&_ROK),Ostatné[Dátum žiadosti o šek],\"<=\"&F$4)","v":{"v":0,"d":"0.00 EUR"}},{"$f":"SUMIFS(RozpisVýdavkov[Suma šeku],RozpisVýdavkov[Kód G/L],SúhrnMesačnýchVýdavkov[[#This Row],[Kód G/L]],RozpisVýdavkov[Dátum vystavenia faktúry],\">=\"&G$3,RozpisVýdavkov[Dátum vystavenia faktúry],\"<=\"&G$4)+SUMIFS(Ostatné[Suma šeku],Ostatné[Kód G/L],SúhrnMesačnýchVýdavkov[[#This Row],[Kód G/L]],Ostatné[Dátum žiadosti o šek],\">=\"&DATEVALUE(\" 1 \"&SúhrnMesačnýchVýdavkov[[#Headers],[Apríl]]&_ROK),Ostatné[Dátum žiadosti o šek],\"<=\"&G$4)","v":{"v":0,"d":"0.00 EUR"}},{"$f":"SUMIFS(RozpisVýdavkov[Suma šeku],RozpisVýdavkov[Kód G/L],SúhrnMesačnýchVýdavkov[[#This Row],[Kód G/L]],RozpisVýdavkov[Dátum vystavenia faktúry],\">=\"&H$3,RozpisVýdavkov[Dátum vystavenia faktúry],\"<=\"&H$4)+SUMIFS(Ostatné[Suma šeku],Ostatné[Kód G/L],SúhrnMesačnýchVýdavkov[[#This Row],[Kód G/L]],Ostatné[Dátum žiadosti o šek],\">=\"&DATEVALUE(\" 1 \"&SúhrnMesačnýchVýdavkov[[#Headers],[Máj]]&_ROK),Ostatné[Dátum žiadosti o šek],\"<=\"&H$4)","v":{"v":0,"d":"0.00 EUR"}},{"$f":"SUMIFS(RozpisVýdavkov[Suma šeku],RozpisVýdavkov[Kód G/L],SúhrnMesačnýchVýdavkov[[#This Row],[Kód G/L]],RozpisVýdavkov[Dátum vystavenia faktúry],\">=\"&I$3,RozpisVýdavkov[Dátum vystavenia faktúry],\"<=\"&I$4)+SUMIFS(Ostatné[Suma šeku],Ostatné[Kód G/L],SúhrnMesačnýchVýdavkov[[#This Row],[Kód G/L]],Ostatné[Dátum žiadosti o šek],\">=\"&DATEVALUE(\" 1 \"&SúhrnMesačnýchVýdavkov[[#Headers],[Jún]]&_ROK),Ostatné[Dátum žiadosti o šek],\"<=\"&I$4)","v":{"v":0,"d":"0.00 EUR"}},{"$f":"SUMIFS(RozpisVýdavkov[Suma šeku],RozpisVýdavkov[Kód G/L],SúhrnMesačnýchVýdavkov[[#This Row],[Kód G/L]],RozpisVýdavkov[Dátum vystavenia faktúry],\">=\"&J$3,RozpisVýdavkov[Dátum vystavenia faktúry],\"<=\"&J$4)+SUMIFS(Ostatné[Suma šeku],Ostatné[Kód G/L],SúhrnMesačnýchVýdavkov[[#This Row],[Kód G/L]],Ostatné[Dátum žiadosti o šek],\">=\"&DATEVALUE(\" 1 \"&SúhrnMesačnýchVýdavkov[[#Headers],[Júl]]&_ROK),Ostatné[Dátum žiadosti o šek],\"<=\"&J$4)","v":{"v":0,"d":"0.00 EUR"}},{"$f":"SUMIFS(RozpisVýdavkov[Suma šeku],RozpisVýdavkov[Kód G/L],SúhrnMesačnýchVýdavkov[[#This Row],[Kód G/L]],RozpisVýdavkov[Dátum vystavenia faktúry],\">=\"&K$3,RozpisVýdavkov[Dátum vystavenia faktúry],\"<=\"&K$4)+SUMIFS(Ostatné[Suma šeku],Ostatné[Kód G/L],SúhrnMesačnýchVýdavkov[[#This Row],[Kód G/L]],Ostatné[Dátum žiadosti o šek],\">=\"&DATEVALUE(\" 1 \"&SúhrnMesačnýchVýdavkov[[#Headers],[August]]&_ROK),Ostatné[Dátum žiadosti o šek],\"<=\"&K$4)","v":{"v":0,"d":"0.00 EUR"}},{"$f":"SUMIFS(RozpisVýdavkov[Suma šeku],RozpisVýdavkov[Kód G/L],SúhrnMesačnýchVýdavkov[[#This Row],[Kód G/L]],RozpisVýdavkov[Dátum vystavenia faktúry],\">=\"&L$3,RozpisVýdavkov[Dátum vystavenia faktúry],\"<=\"&L$4)+SUMIFS(Ostatné[Suma šeku],Ostatné[Kód G/L],SúhrnMesačnýchVýdavkov[[#This Row],[Kód G/L]],Ostatné[Dátum žiadosti o šek],\">=\"&DATEVALUE(\" 1 \"&SúhrnMesačnýchVýdavkov[[#Headers],[September]]&_ROK),Ostatné[Dátum žiadosti o šek],\"<=\"&L$4)","v":{"v":0,"d":"0.00 EUR"}},{"$f":"SUMIFS(RozpisVýdavkov[Suma šeku],RozpisVýdavkov[Kód G/L],SúhrnMesačnýchVýdavkov[[#This Row],[Kód G/L]],RozpisVýdavkov[Dátum vystavenia faktúry],\">=\"&M$3,RozpisVýdavkov[Dátum vystavenia faktúry],\"<=\"&M$4)+SUMIFS(Ostatné[Suma šeku],Ostatné[Kód G/L],SúhrnMesačnýchVýdavkov[[#This Row],[Kód G/L]],Ostatné[Dátum žiadosti o šek],\">=\"&DATEVALUE(\" 1 \"&SúhrnMesačnýchVýdavkov[[#Headers],[Október]]&_ROK),Ostatné[Dátum žiadosti o šek],\"<=\"&M$4)","v":{"v":0,"d":"0.00 EUR"}},{"$f":"SUMIFS(RozpisVýdavkov[Suma šeku],RozpisVýdavkov[Kód G/L],SúhrnMesačnýchVýdavkov[[#This Row],[Kód G/L]],RozpisVýdavkov[Dátum vystavenia faktúry],\">=\"&N$3,RozpisVýdavkov[Dátum vystavenia faktúry],\"<=\"&N$4)+SUMIFS(Ostatné[Suma šeku],Ostatné[Kód G/L],SúhrnMesačnýchVýdavkov[[#This Row],[Kód G/L]],Ostatné[Dátum žiadosti o šek],\">=\"&DATEVALUE(\" 1 \"&SúhrnMesačnýchVýdavkov[[#Headers],[November]]&_ROK),Ostatné[Dátum žiadosti o šek],\"<=\"&N$4)","v":{"v":0,"d":"0.00 EUR"}},{"$f":"SUMIFS(RozpisVýdavkov[Suma šeku],RozpisVýdavkov[Kód G/L],SúhrnMesačnýchVýdavkov[[#This Row],[Kód G/L]],RozpisVýdavkov[Dátum vystavenia faktúry],\">=\"&O$3,RozpisVýdavkov[Dátum vystavenia faktúry],\"<=\"&O$4)+SUMIFS(Ostatné[Suma šeku],Ostatné[Kód G/L],SúhrnMesačnýchVýdavkov[[#This Row],[Kód G/L]],Ostatné[Dátum žiadosti o šek],\">=\"&DATEVALUE(\" 1 \"&SúhrnMesačnýchVýdavkov[[#Headers],[December]]&_ROK),Ostatné[Dátum žiadosti o šek],\"<=\"&O$4)","v":{"v":0,"d":"0.00 EUR"}},{"$f":"SUM(SúhrnMesačnýchVýdavkov[[#This Row],[Január]:[December]])","v":{"v":0,"d":"0.00 EUR"}}]
[null,3000,"Tlačiarne",{"$f":"SUMIFS(RozpisVýdavkov[Suma šeku],RozpisVýdavkov[Kód G/L],SúhrnMesačnýchVýdavkov[[#This Row],[Kód G/L]],RozpisVýdavkov[Dátum vystavenia faktúry],\">=\"&D$3,RozpisVýdavkov[Dátum vystavenia faktúry],\"<=\"&D$4)+SUMIFS(Ostatné[Suma šeku],Ostatné[Kód G/L],SúhrnMesačnýchVýdavkov[[#This Row],[Kód G/L]],Ostatné[Dátum žiadosti o šek],\">=\"&DATEVALUE(\" 1 \"&SúhrnMesačnýchVýdavkov[[#Headers],[Január]]&_ROK),Ostatné[Dátum žiadosti o šek],\"<=\"&D$4)","v":{"v":0,"d":"0.00 EUR"}},{"$f":"SUMIFS(RozpisVýdavkov[Suma šeku],RozpisVýdavkov[Kód G/L],SúhrnMesačnýchVýdavkov[[#This Row],[Kód G/L]],RozpisVýdavkov[Dátum vystavenia faktúry],\">=\"&E$3,RozpisVýdavkov[Dátum vystavenia faktúry],\"<=\"&E$4)+SUMIFS(Ostatné[Suma šeku],Ostatné[Kód G/L],SúhrnMesačnýchVýdavkov[[#This Row],[Kód G/L]],Ostatné[Dátum žiadosti o šek],\">=\"&DATEVALUE(\" 1 \"&SúhrnMesačnýchVýdavkov[[#Headers],[Február]]&_ROK),Ostatné[Dátum žiadosti o šek],\"<=\"&E$4)","v":{"v":0,"d":"0.00 EUR"}},{"$f":"SUMIFS(RozpisVýdavkov[Suma šeku],RozpisVýdavkov[Kód G/L],SúhrnMesačnýchVýdavkov[[#This Row],[Kód G/L]],RozpisVýdavkov[Dátum vystavenia faktúry],\">=\"&F$3,RozpisVýdavkov[Dátum vystavenia faktúry],\"<=\"&F$4)+SUMIFS(Ostatné[Suma šeku],Ostatné[Kód G/L],SúhrnMesačnýchVýdavkov[[#This Row],[Kód G/L]],Ostatné[Dátum žiadosti o šek],\">=\"&DATEVALUE(\" 1 \"&SúhrnMesačnýchVýdavkov[[#Headers],[Marec]]&_ROK),Ostatné[Dátum žiadosti o šek],\"<=\"&F$4)","v":{"v":0,"d":"0.00 EUR"}},{"$f":"SUMIFS(RozpisVýdavkov[Suma šeku],RozpisVýdavkov[Kód G/L],SúhrnMesačnýchVýdavkov[[#This Row],[Kód G/L]],RozpisVýdavkov[Dátum vystavenia faktúry],\">=\"&G$3,RozpisVýdavkov[Dátum vystavenia faktúry],\"<=\"&G$4)+SUMIFS(Ostatné[Suma šeku],Ostatné[Kód G/L],SúhrnMesačnýchVýdavkov[[#This Row],[Kód G/L]],Ostatné[Dátum žiadosti o šek],\">=\"&DATEVALUE(\" 1 \"&SúhrnMesačnýchVýdavkov[[#Headers],[Apríl]]&_ROK),Ostatné[Dátum žiadosti o šek],\"<=\"&G$4)","v":{"v":0,"d":"0.00 EUR"}},{"$f":"SUMIFS(RozpisVýdavkov[Suma šeku],RozpisVýdavkov[Kód G/L],SúhrnMesačnýchVýdavkov[[#This Row],[Kód G/L]],RozpisVýdavkov[Dátum vystavenia faktúry],\">=\"&H$3,RozpisVýdavkov[Dátum vystavenia faktúry],\"<=\"&H$4)+SUMIFS(Ostatné[Suma šeku],Ostatné[Kód G/L],SúhrnMesačnýchVýdavkov[[#This Row],[Kód G/L]],Ostatné[Dátum žiadosti o šek],\">=\"&DATEVALUE(\" 1 \"&SúhrnMesačnýchVýdavkov[[#Headers],[Máj]]&_ROK),Ostatné[Dátum žiadosti o šek],\"<=\"&H$4)","v":{"v":0,"d":"0.00 EUR"}},{"$f":"SUMIFS(RozpisVýdavkov[Suma šeku],RozpisVýdavkov[Kód G/L],SúhrnMesačnýchVýdavkov[[#This Row],[Kód G/L]],RozpisVýdavkov[Dátum vystavenia faktúry],\">=\"&I$3,RozpisVýdavkov[Dátum vystavenia faktúry],\"<=\"&I$4)+SUMIFS(Ostatné[Suma šeku],Ostatné[Kód G/L],SúhrnMesačnýchVýdavkov[[#This Row],[Kód G/L]],Ostatné[Dátum žiadosti o šek],\">=\"&DATEVALUE(\" 1 \"&SúhrnMesačnýchVýdavkov[[#Headers],[Jún]]&_ROK),Ostatné[Dátum žiadosti o šek],\"<=\"&I$4)","v":{"v":0,"d":"0.00 EUR"}},{"$f":"SUMIFS(RozpisVýdavkov[Suma šeku],RozpisVýdavkov[Kód G/L],SúhrnMesačnýchVýdavkov[[#This Row],[Kód G/L]],RozpisVýdavkov[Dátum vystavenia faktúry],\">=\"&J$3,RozpisVýdavkov[Dátum vystavenia faktúry],\"<=\"&J$4)+SUMIFS(Ostatné[Suma šeku],Ostatné[Kód G/L],SúhrnMesačnýchVýdavkov[[#This Row],[Kód G/L]],Ostatné[Dátum žiadosti o šek],\">=\"&DATEVALUE(\" 1 \"&SúhrnMesačnýchVýdavkov[[#Headers],[Júl]]&_ROK),Ostatné[Dátum žiadosti o šek],\"<=\"&J$4)","v":{"v":0,"d":"0.00 EUR"}},{"$f":"SUMIFS(RozpisVýdavkov[Suma šeku],RozpisVýdavkov[Kód G/L],SúhrnMesačnýchVýdavkov[[#This Row],[Kód G/L]],RozpisVýdavkov[Dátum vystavenia faktúry],\">=\"&K$3,RozpisVýdavkov[Dátum vystavenia faktúry],\"<=\"&K$4)+SUMIFS(Ostatné[Suma šeku],Ostatné[Kód G/L],SúhrnMesačnýchVýdavkov[[#This Row],[Kód G/L]],Ostatné[Dátum žiadosti o šek],\">=\"&DATEVALUE(\" 1 \"&SúhrnMesačnýchVýdavkov[[#Headers],[August]]&_ROK),Ostatné[Dátum žiadosti o šek],\"<=\"&K$4)","v":{"v":0,"d":"0.00 EUR"}},{"$f":"SUMIFS(RozpisVýdavkov[Suma šeku],RozpisVýdavkov[Kód G/L],SúhrnMesačnýchVýdavkov[[#This Row],[Kód G/L]],RozpisVýdavkov[Dátum vystavenia faktúry],\">=\"&L$3,RozpisVýdavkov[Dátum vystavenia faktúry],\"<=\"&L$4)+SUMIFS(Ostatné[Suma šeku],Ostatné[Kód G/L],SúhrnMesačnýchVýdavkov[[#This Row],[Kód G/L]],Ostatné[Dátum žiadosti o šek],\">=\"&DATEVALUE(\" 1 \"&SúhrnMesačnýchVýdavkov[[#Headers],[September]]&_ROK),Ostatné[Dátum žiadosti o šek],\"<=\"&L$4)","v":{"v":0,"d":"0.00 EUR"}},{"$f":"SUMIFS(RozpisVýdavkov[Suma šeku],RozpisVýdavkov[Kód G/L],SúhrnMesačnýchVýdavkov[[#This Row],[Kód G/L]],RozpisVýdavkov[Dátum vystavenia faktúry],\">=\"&M$3,RozpisVýdavkov[Dátum vystavenia faktúry],\"<=\"&M$4)+SUMIFS(Ostatné[Suma šeku],Ostatné[Kód G/L],SúhrnMesačnýchVýdavkov[[#This Row],[Kód G/L]],Ostatné[Dátum žiadosti o šek],\">=\"&DATEVALUE(\" 1 \"&SúhrnMesačnýchVýdavkov[[#Headers],[Október]]&_ROK),Ostatné[Dátum žiadosti o šek],\"<=\"&M$4)","v":{"v":0,"d":"0.00 EUR"}},{"$f":"SUMIFS(RozpisVýdavkov[Suma šeku],RozpisVýdavkov[Kód G/L],SúhrnMesačnýchVýdavkov[[#This Row],[Kód G/L]],RozpisVýdavkov[Dátum vystavenia faktúry],\">=\"&N$3,RozpisVýdavkov[Dátum vystavenia faktúry],\"<=\"&N$4)+SUMIFS(Ostatné[Suma šeku],Ostatné[Kód G/L],SúhrnMesačnýchVýdavkov[[#This Row],[Kód G/L]],Ostatné[Dátum žiadosti o šek],\">=\"&DATEVALUE(\" 1 \"&SúhrnMesačnýchVýdavkov[[#Headers],[November]]&_ROK),Ostatné[Dátum žiadosti o šek],\"<=\"&N$4)","v":{"v":0,"d":"0.00 EUR"}},{"$f":"SUMIFS(RozpisVýdavkov[Suma šeku],RozpisVýdavkov[Kód G/L],SúhrnMesačnýchVýdavkov[[#This Row],[Kód G/L]],RozpisVýdavkov[Dátum vystavenia faktúry],\">=\"&O$3,RozpisVýdavkov[Dátum vystavenia faktúry],\"<=\"&O$4)+SUMIFS(Ostatné[Suma šeku],Ostatné[Kód G/L],SúhrnMesačnýchVýdavkov[[#This Row],[Kód G/L]],Ostatné[Dátum žiadosti o šek],\">=\"&DATEVALUE(\" 1 \"&SúhrnMesačnýchVýdavkov[[#Headers],[December]]&_ROK),Ostatné[Dátum žiadosti o šek],\"<=\"&O$4)","v":{"v":0,"d":"0.00 EUR"}},{"$f":"SUM(SúhrnMesačnýchVýdavkov[[#This Row],[Január]:[December]])","v":{"v":0,"d":"0.00 EUR"}}]
[null,4000,"Náklady na server",{"$f":"SUMIFS(RozpisVýdavkov[Suma šeku],RozpisVýdavkov[Kód G/L],SúhrnMesačnýchVýdavkov[[#This Row],[Kód G/L]],RozpisVýdavkov[Dátum vystavenia faktúry],\">=\"&D$3,RozpisVýdavkov[Dátum vystavenia faktúry],\"<=\"&D$4)+SUMIFS(Ostatné[Suma šeku],Ostatné[Kód G/L],SúhrnMesačnýchVýdavkov[[#This Row],[Kód G/L]],Ostatné[Dátum žiadosti o šek],\">=\"&DATEVALUE(\" 1 \"&SúhrnMesačnýchVýdavkov[[#Headers],[Január]]&_ROK),Ostatné[Dátum žiadosti o šek],\"<=\"&D$4)","v":{"v":0,"d":"0.00 EUR"}},{"$f":"SUMIFS(RozpisVýdavkov[Suma šeku],RozpisVýdavkov[Kód G/L],SúhrnMesačnýchVýdavkov[[#This Row],[Kód G/L]],RozpisVýdavkov[Dátum vystavenia faktúry],\">=\"&E$3,RozpisVýdavkov[Dátum vystavenia faktúry],\"<=\"&E$4)+SUMIFS(Ostatné[Suma šeku],Ostatné[Kód G/L],SúhrnMesačnýchVýdavkov[[#This Row],[Kód G/L]],Ostatné[Dátum žiadosti o šek],\">=\"&DATEVALUE(\" 1 \"&SúhrnMesačnýchVýdavkov[[#Headers],[Február]]&_ROK),Ostatné[Dátum žiadosti o šek],\"<=\"&E$4)","v":{"v":0,"d":"0.00 EUR"}},{"$f":"SUMIFS(RozpisVýdavkov[Suma šeku],RozpisVýdavkov[Kód G/L],SúhrnMesačnýchVýdavkov[[#This Row],[Kód G/L]],RozpisVýdavkov[Dátum vystavenia faktúry],\">=\"&F$3,RozpisVýdavkov[Dátum vystavenia faktúry],\"<=\"&F$4)+SUMIFS(Ostatné[Suma šeku],Ostatné[Kód G/L],SúhrnMesačnýchVýdavkov[[#This Row],[Kód G/L]],Ostatné[Dátum žiadosti o šek],\">=\"&DATEVALUE(\" 1 \"&SúhrnMesačnýchVýdavkov[[#Headers],[Marec]]&_ROK),Ostatné[Dátum žiadosti o šek],\"<=\"&F$4)","v":{"v":0,"d":"0.00 EUR"}},{"$f":"SUMIFS(RozpisVýdavkov[Suma šeku],RozpisVýdavkov[Kód G/L],SúhrnMesačnýchVýdavkov[[#This Row],[Kód G/L]],RozpisVýdavkov[Dátum vystavenia faktúry],\">=\"&G$3,RozpisVýdavkov[Dátum vystavenia faktúry],\"<=\"&G$4)+SUMIFS(Ostatné[Suma šeku],Ostatné[Kód G/L],SúhrnMesačnýchVýdavkov[[#This Row],[Kód G/L]],Ostatné[Dátum žiadosti o šek],\">=\"&DATEVALUE(\" 1 \"&SúhrnMesačnýchVýdavkov[[#Headers],[Apríl]]&_ROK),Ostatné[Dátum žiadosti o šek],\"<=\"&G$4)","v":{"v":0,"d":"0.00 EUR"}},{"$f":"SUMIFS(RozpisVýdavkov[Suma šeku],RozpisVýdavkov[Kód G/L],SúhrnMesačnýchVýdavkov[[#This Row],[Kód G/L]],RozpisVýdavkov[Dátum vystavenia faktúry],\">=\"&H$3,RozpisVýdavkov[Dátum vystavenia faktúry],\"<=\"&H$4)+SUMIFS(Ostatné[Suma šeku],Ostatné[Kód G/L],SúhrnMesačnýchVýdavkov[[#This Row],[Kód G/L]],Ostatné[Dátum žiadosti o šek],\">=\"&DATEVALUE(\" 1 \"&SúhrnMesačnýchVýdavkov[[#Headers],[Máj]]&_ROK),Ostatné[Dátum žiadosti o šek],\"<=\"&H$4)","v":{"v":0,"d":"0.00 EUR"}},{"$f":"SUMIFS(RozpisVýdavkov[Suma šeku],RozpisVýdavkov[Kód G/L],SúhrnMesačnýchVýdavkov[[#This Row],[Kód G/L]],RozpisVýdavkov[Dátum vystavenia faktúry],\">=\"&I$3,RozpisVýdavkov[Dátum vystavenia faktúry],\"<=\"&I$4)+SUMIFS(Ostatné[Suma šeku],Ostatné[Kód G/L],SúhrnMesačnýchVýdavkov[[#This Row],[Kód G/L]],Ostatné[Dátum žiadosti o šek],\">=\"&DATEVALUE(\" 1 \"&SúhrnMesačnýchVýdavkov[[#Headers],[Jún]]&_ROK),Ostatné[Dátum žiadosti o šek],\"<=\"&I$4)","v":{"v":0,"d":"0.00 EUR"}},{"$f":"SUMIFS(RozpisVýdavkov[Suma šeku],RozpisVýdavkov[Kód G/L],SúhrnMesačnýchVýdavkov[[#This Row],[Kód G/L]],RozpisVýdavkov[Dátum vystavenia faktúry],\">=\"&J$3,RozpisVýdavkov[Dátum vystavenia faktúry],\"<=\"&J$4)+SUMIFS(Ostatné[Suma šeku],Ostatné[Kód G/L],SúhrnMesačnýchVýdavkov[[#This Row],[Kód G/L]],Ostatné[Dátum žiadosti o šek],\">=\"&DATEVALUE(\" 1 \"&SúhrnMesačnýchVýdavkov[[#Headers],[Júl]]&_ROK),Ostatné[Dátum žiadosti o šek],\"<=\"&J$4)","v":{"v":0,"d":"0.00 EUR"}},{"$f":"SUMIFS(RozpisVýdavkov[Suma šeku],RozpisVýdavkov[Kód G/L],SúhrnMesačnýchVýdavkov[[#This Row],[Kód G/L]],RozpisVýdavkov[Dátum vystavenia faktúry],\">=\"&K$3,RozpisVýdavkov[Dátum vystavenia faktúry],\"<=\"&K$4)+SUMIFS(Ostatné[Suma šeku],Ostatné[Kód G/L],SúhrnMesačnýchVýdavkov[[#This Row],[Kód G/L]],Ostatné[Dátum žiadosti o šek],\">=\"&DATEVALUE(\" 1 \"&SúhrnMesačnýchVýdavkov[[#Headers],[August]]&_ROK),Ostatné[Dátum žiadosti o šek],\"<=\"&K$4)","v":{"v":0,"d":"0.00 EUR"}},{"$f":"SUMIFS(RozpisVýdavkov[Suma šeku],RozpisVýdavkov[Kód G/L],SúhrnMesačnýchVýdavkov[[#This Row],[Kód G/L]],RozpisVýdavkov[Dátum vystavenia faktúry],\">=\"&L$3,RozpisVýdavkov[Dátum vystavenia faktúry],\"<=\"&L$4)+SUMIFS(Ostatné[Suma šeku],Ostatné[Kód G/L],SúhrnMesačnýchVýdavkov[[#This Row],[Kód G/L]],Ostatné[Dátum žiadosti o šek],\">=\"&DATEVALUE(\" 1 \"&SúhrnMesačnýchVýdavkov[[#Headers],[September]]&_ROK),Ostatné[Dátum žiadosti o šek],\"<=\"&L$4)","v":{"v":0,"d":"0.00 EUR"}},{"$f":"SUMIFS(RozpisVýdavkov[Suma šeku],RozpisVýdavkov[Kód G/L],SúhrnMesačnýchVýdavkov[[#This Row],[Kód G/L]],RozpisVýdavkov[Dátum vystavenia faktúry],\">=\"&M$3,RozpisVýdavkov[Dátum vystavenia faktúry],\"<=\"&M$4)+SUMIFS(Ostatné[Suma šeku],Ostatné[Kód G/L],SúhrnMesačnýchVýdavkov[[#This Row],[Kód G/L]],Ostatné[Dátum žiadosti o šek],\">=\"&DATEVALUE(\" 1 \"&SúhrnMesačnýchVýdavkov[[#Headers],[Október]]&_ROK),Ostatné[Dátum žiadosti o šek],\"<=\"&M$4)","v":{"v":0,"d":"0.00 EUR"}},{"$f":"SUMIFS(RozpisVýdavkov[Suma šeku],RozpisVýdavkov[Kód G/L],SúhrnMesačnýchVýdavkov[[#This Row],[Kód G/L]],RozpisVýdavkov[Dátum vystavenia faktúry],\">=\"&N$3,RozpisVýdavkov[Dátum vystavenia faktúry],\"<=\"&N$4)+SUMIFS(Ostatné[Suma šeku],Ostatné[Kód G/L],SúhrnMesačnýchVýdavkov[[#This Row],[Kód G/L]],Ostatné[Dátum žiadosti o šek],\">=\"&DATEVALUE(\" 1 \"&SúhrnMesačnýchVýdavkov[[#Headers],[November]]&_ROK),Ostatné[Dátum žiadosti o šek],\"<=\"&N$4)","v":{"v":0,"d":"0.00 EUR"}},{"$f":"SUMIFS(RozpisVýdavkov[Suma šeku],RozpisVýdavkov[Kód G/L],SúhrnMesačnýchVýdavkov[[#This Row],[Kód G/L]],RozpisVýdavkov[Dátum vystavenia faktúry],\">=\"&O$3,RozpisVýdavkov[Dátum vystavenia faktúry],\"<=\"&O$4)+SUMIFS(Ostatné[Suma šeku],Ostatné[Kód G/L],SúhrnMesačnýchVýdavkov[[#This Row],[Kód G/L]],Ostatné[Dátum žiadosti o šek],\">=\"&DATEVALUE(\" 1 \"&SúhrnMesačnýchVýdavkov[[#Headers],[December]]&_ROK),Ostatné[Dátum žiadosti o šek],\"<=\"&O$4)","v":{"v":0,"d":"0.00 EUR"}},{"$f":"SUM(SúhrnMesačnýchVýdavkov[[#This Row],[Január]:[December]])","v":{"v":0,"d":"0.00 EUR"}}]
[null,5000,"Jednorazové potreby",{"$f":"SUMIFS(RozpisVýdavkov[Suma šeku],RozpisVýdavkov[Kód G/L],SúhrnMesačnýchVýdavkov[[#This Row],[Kód G/L]],RozpisVýdavkov[Dátum vystavenia faktúry],\">=\"&D$3,RozpisVýdavkov[Dátum vystavenia faktúry],\"<=\"&D$4)+SUMIFS(Ostatné[Suma šeku],Ostatné[Kód G/L],SúhrnMesačnýchVýdavkov[[#This Row],[Kód G/L]],Ostatné[Dátum žiadosti o šek],\">=\"&DATEVALUE(\" 1 \"&SúhrnMesačnýchVýdavkov[[#Headers],[Január]]&_ROK),Ostatné[Dátum žiadosti o šek],\"<=\"&D$4)","v":{"v":0,"d":"0.00 EUR"}},{"$f":"SUMIFS(RozpisVýdavkov[Suma šeku],RozpisVýdavkov[Kód G/L],SúhrnMesačnýchVýdavkov[[#This Row],[Kód G/L]],RozpisVýdavkov[Dátum vystavenia faktúry],\">=\"&E$3,RozpisVýdavkov[Dátum vystavenia faktúry],\"<=\"&E$4)+SUMIFS(Ostatné[Suma šeku],Ostatné[Kód G/L],SúhrnMesačnýchVýdavkov[[#This Row],[Kód G/L]],Ostatné[Dátum žiadosti o šek],\">=\"&DATEVALUE(\" 1 \"&SúhrnMesačnýchVýdavkov[[#Headers],[Február]]&_ROK),Ostatné[Dátum žiadosti o šek],\"<=\"&E$4)","v":{"v":0,"d":"0.00 EUR"}},{"$f":"SUMIFS(RozpisVýdavkov[Suma šeku],RozpisVýdavkov[Kód G/L],SúhrnMesačnýchVýdavkov[[#This Row],[Kód G/L]],RozpisVýdavkov[Dátum vystavenia faktúry],\">=\"&F$3,RozpisVýdavkov[Dátum vystavenia faktúry],\"<=\"&F$4)+SUMIFS(Ostatné[Suma šeku],Ostatné[Kód G/L],SúhrnMesačnýchVýdavkov[[#This Row],[Kód G/L]],Ostatné[Dátum žiadosti o šek],\">=\"&DATEVALUE(\" 1 \"&SúhrnMesačnýchVýdavkov[[#Headers],[Marec]]&_ROK),Ostatné[Dátum žiadosti o šek],\"<=\"&F$4)","v":{"v":0,"d":"0.00 EUR"}},{"$f":"SUMIFS(RozpisVýdavkov[Suma šeku],RozpisVýdavkov[Kód G/L],SúhrnMesačnýchVýdavkov[[#This Row],[Kód G/L]],RozpisVýdavkov[Dátum vystavenia faktúry],\">=\"&G$3,RozpisVýdavkov[Dátum vystavenia faktúry],\"<=\"&G$4)+SUMIFS(Ostatné[Suma šeku],Ostatné[Kód G/L],SúhrnMesačnýchVýdavkov[[#This Row],[Kód G/L]],Ostatné[Dátum žiadosti o šek],\">=\"&DATEVALUE(\" 1 \"&SúhrnMesačnýchVýdavkov[[#Headers],[Apríl]]&_ROK),Ostatné[Dátum žiadosti o šek],\"<=\"&G$4)","v":{"v":0,"d":"0.00 EUR"}},{"$f":"SUMIFS(RozpisVýdavkov[Suma šeku],RozpisVýdavkov[Kód G/L],SúhrnMesačnýchVýdavkov[[#This Row],[Kód G/L]],RozpisVýdavkov[Dátum vystavenia faktúry],\">=\"&H$3,RozpisVýdavkov[Dátum vystavenia faktúry],\"<=\"&H$4)+SUMIFS(Ostatné[Suma šeku],Ostatné[Kód G/L],SúhrnMesačnýchVýdavkov[[#This Row],[Kód G/L]],Ostatné[Dátum žiadosti o šek],\">=\"&DATEVALUE(\" 1 \"&SúhrnMesačnýchVýdavkov[[#Headers],[Máj]]&_ROK),Ostatné[Dátum žiadosti o šek],\"<=\"&H$4)","v":{"v":0,"d":"0.00 EUR"}},{"$f":"SUMIFS(RozpisVýdavkov[Suma šeku],RozpisVýdavkov[Kód G/L],SúhrnMesačnýchVýdavkov[[#This Row],[Kód G/L]],RozpisVýdavkov[Dátum vystavenia faktúry],\">=\"&I$3,RozpisVýdavkov[Dátum vystavenia faktúry],\"<=\"&I$4)+SUMIFS(Ostatné[Suma šeku],Ostatné[Kód G/L],SúhrnMesačnýchVýdavkov[[#This Row],[Kód G/L]],Ostatné[Dátum žiadosti o šek],\">=\"&DATEVALUE(\" 1 \"&SúhrnMesačnýchVýdavkov[[#Headers],[Jún]]&_ROK),Ostatné[Dátum žiadosti o šek],\"<=\"&I$4)","v":{"v":0,"d":"0.00 EUR"}},{"$f":"SUMIFS(RozpisVýdavkov[Suma šeku],RozpisVýdavkov[Kód G/L],SúhrnMesačnýchVýdavkov[[#This Row],[Kód G/L]],RozpisVýdavkov[Dátum vystavenia faktúry],\">=\"&J$3,RozpisVýdavkov[Dátum vystavenia faktúry],\"<=\"&J$4)+SUMIFS(Ostatné[Suma šeku],Ostatné[Kód G/L],SúhrnMesačnýchVýdavkov[[#This Row],[Kód G/L]],Ostatné[Dátum žiadosti o šek],\">=\"&DATEVALUE(\" 1 \"&SúhrnMesačnýchVýdavkov[[#Headers],[Júl]]&_ROK),Ostatné[Dátum žiadosti o šek],\"<=\"&J$4)","v":{"v":0,"d":"0.00 EUR"}},{"$f":"SUMIFS(RozpisVýdavkov[Suma šeku],RozpisVýdavkov[Kód G/L],SúhrnMesačnýchVýdavkov[[#This Row],[Kód G/L]],RozpisVýdavkov[Dátum vystavenia faktúry],\">=\"&K$3,RozpisVýdavkov[Dátum vystavenia faktúry],\"<=\"&K$4)+SUMIFS(Ostatné[Suma šeku],Ostatné[Kód G/L],SúhrnMesačnýchVýdavkov[[#This Row],[Kód G/L]],Ostatné[Dátum žiadosti o šek],\">=\"&DATEVALUE(\" 1 \"&SúhrnMesačnýchVýdavkov[[#Headers],[August]]&_ROK),Ostatné[Dátum žiadosti o šek],\"<=\"&K$4)","v":{"v":0,"d":"0.00 EUR"}},{"$f":"SUMIFS(RozpisVýdavkov[Suma šeku],RozpisVýdavkov[Kód G/L],SúhrnMesačnýchVýdavkov[[#This Row],[Kód G/L]],RozpisVýdavkov[Dátum vystavenia faktúry],\">=\"&L$3,RozpisVýdavkov[Dátum vystavenia faktúry],\"<=\"&L$4)+SUMIFS(Ostatné[Suma šeku],Ostatné[Kód G/L],SúhrnMesačnýchVýdavkov[[#This Row],[Kód G/L]],Ostatné[Dátum žiadosti o šek],\">=\"&DATEVALUE(\" 1 \"&SúhrnMesačnýchVýdavkov[[#Headers],[September]]&_ROK),Ostatné[Dátum žiadosti o šek],\"<=\"&L$4)","v":{"v":0,"d":"0.00 EUR"}},{"$f":"SUMIFS(RozpisVýdavkov[Suma šeku],RozpisVýdavkov[Kód G/L],SúhrnMesačnýchVýdavkov[[#This Row],[Kód G/L]],RozpisVýdavkov[Dátum vystavenia faktúry],\">=\"&M$3,RozpisVýdavkov[Dátum vystavenia faktúry],\"<=\"&M$4)+SUMIFS(Ostatné[Suma šeku],Ostatné[Kód G/L],SúhrnMesačnýchVýdavkov[[#This Row],[Kód G/L]],Ostatné[Dátum žiadosti o šek],\">=\"&DATEVALUE(\" 1 \"&SúhrnMesačnýchVýdavkov[[#Headers],[Október]]&_ROK),Ostatné[Dátum žiadosti o šek],\"<=\"&M$4)","v":{"v":0,"d":"0.00 EUR"}},{"$f":"SUMIFS(RozpisVýdavkov[Suma šeku],RozpisVýdavkov[Kód G/L],SúhrnMesačnýchVýdavkov[[#This Row],[Kód G/L]],RozpisVýdavkov[Dátum vystavenia faktúry],\">=\"&N$3,RozpisVýdavkov[Dátum vystavenia faktúry],\"<=\"&N$4)+SUMIFS(Ostatné[Suma šeku],Ostatné[Kód G/L],SúhrnMesačnýchVýdavkov[[#This Row],[Kód G/L]],Ostatné[Dátum žiadosti o šek],\">=\"&DATEVALUE(\" 1 \"&SúhrnMesačnýchVýdavkov[[#Headers],[November]]&_ROK),Ostatné[Dátum žiadosti o šek],\"<=\"&N$4)","v":{"v":0,"d":"0.00 EUR"}},{"$f":"SUMIFS(RozpisVýdavkov[Suma šeku],RozpisVýdavkov[Kód G/L],SúhrnMesačnýchVýdavkov[[#This Row],[Kód G/L]],RozpisVýdavkov[Dátum vystavenia faktúry],\">=\"&O$3,RozpisVýdavkov[Dátum vystavenia faktúry],\"<=\"&O$4)+SUMIFS(Ostatné[Suma šeku],Ostatné[Kód G/L],SúhrnMesačnýchVýdavkov[[#This Row],[Kód G/L]],Ostatné[Dátum žiadosti o šek],\">=\"&DATEVALUE(\" 1 \"&SúhrnMesačnýchVýdavkov[[#Headers],[December]]&_ROK),Ostatné[Dátum žiadosti o šek],\"<=\"&O$4)","v":{"v":0,"d":"0.00 EUR"}},{"$f":"SUM(SúhrnMesačnýchVýdavkov[[#This Row],[Január]:[December]])","v":{"v":0,"d":"0.00 EUR"}}]
[null,6000,"Klientske výdavky",{"$f":"SUMIFS(RozpisVýdavkov[Suma šeku],RozpisVýdavkov[Kód G/L],SúhrnMesačnýchVýdavkov[[#This Row],[Kód G/L]],RozpisVýdavkov[Dátum vystavenia faktúry],\">=\"&D$3,RozpisVýdavkov[Dátum vystavenia faktúry],\"<=\"&D$4)+SUMIFS(Ostatné[Suma šeku],Ostatné[Kód G/L],SúhrnMesačnýchVýdavkov[[#This Row],[Kód G/L]],Ostatné[Dátum žiadosti o šek],\">=\"&DATEVALUE(\" 1 \"&SúhrnMesačnýchVýdavkov[[#Headers],[Január]]&_ROK),Ostatné[Dátum žiadosti o šek],\"<=\"&D$4)","v":{"v":0,"d":"0.00 EUR"}},{"$f":"SUMIFS(RozpisVýdavkov[Suma šeku],RozpisVýdavkov[Kód G/L],SúhrnMesačnýchVýdavkov[[#This Row],[Kód G/L]],RozpisVýdavkov[Dátum vystavenia faktúry],\">=\"&E$3,RozpisVýdavkov[Dátum vystavenia faktúry],\"<=\"&E$4)+SUMIFS(Ostatné[Suma šeku],Ostatné[Kód G/L],SúhrnMesačnýchVýdavkov[[#This Row],[Kód G/L]],Ostatné[Dátum žiadosti o šek],\">=\"&DATEVALUE(\" 1 \"&SúhrnMesačnýchVýdavkov[[#Headers],[Február]]&_ROK),Ostatné[Dátum žiadosti o šek],\"<=\"&E$4)","v":{"v":0,"d":"0.00 EUR"}},{"$f":"SUMIFS(RozpisVýdavkov[Suma šeku],RozpisVýdavkov[Kód G/L],SúhrnMesačnýchVýdavkov[[#This Row],[Kód G/L]],RozpisVýdavkov[Dátum vystavenia faktúry],\">=\"&F$3,RozpisVýdavkov[Dátum vystavenia faktúry],\"<=\"&F$4)+SUMIFS(Ostatné[Suma šeku],Ostatné[Kód G/L],SúhrnMesačnýchVýdavkov[[#This Row],[Kód G/L]],Ostatné[Dátum žiadosti o šek],\">=\"&DATEVALUE(\" 1 \"&SúhrnMesačnýchVýdavkov[[#Headers],[Marec]]&_ROK),Ostatné[Dátum žiadosti o šek],\"<=\"&F$4)","v":{"v":0,"d":"0.00 EUR"}},{"$f":"SUMIFS(RozpisVýdavkov[Suma šeku],RozpisVýdavkov[Kód G/L],SúhrnMesačnýchVýdavkov[[#This Row],[Kód G/L]],RozpisVýdavkov[Dátum vystavenia faktúry],\">=\"&G$3,RozpisVýdavkov[Dátum vystavenia faktúry],\"<=\"&G$4)+SUMIFS(Ostatné[Suma šeku],Ostatné[Kód G/L],SúhrnMesačnýchVýdavkov[[#This Row],[Kód G/L]],Ostatné[Dátum žiadosti o šek],\">=\"&DATEVALUE(\" 1 \"&SúhrnMesačnýchVýdavkov[[#Headers],[Apríl]]&_ROK),Ostatné[Dátum žiadosti o šek],\"<=\"&G$4)","v":{"v":0,"d":"0.00 EUR"}},{"$f":"SUMIFS(RozpisVýdavkov[Suma šeku],RozpisVýdavkov[Kód G/L],SúhrnMesačnýchVýdavkov[[#This Row],[Kód G/L]],RozpisVýdavkov[Dátum vystavenia faktúry],\">=\"&H$3,RozpisVýdavkov[Dátum vystavenia faktúry],\"<=\"&H$4)+SUMIFS(Ostatné[Suma šeku],Ostatné[Kód G/L],SúhrnMesačnýchVýdavkov[[#This Row],[Kód G/L]],Ostatné[Dátum žiadosti o šek],\">=\"&DATEVALUE(\" 1 \"&SúhrnMesačnýchVýdavkov[[#Headers],[Máj]]&_ROK),Ostatné[Dátum žiadosti o šek],\"<=\"&H$4)","v":{"v":0,"d":"0.00 EUR"}},{"$f":"SUMIFS(RozpisVýdavkov[Suma šeku],RozpisVýdavkov[Kód G/L],SúhrnMesačnýchVýdavkov[[#This Row],[Kód G/L]],RozpisVýdavkov[Dátum vystavenia faktúry],\">=\"&I$3,RozpisVýdavkov[Dátum vystavenia faktúry],\"<=\"&I$4)+SUMIFS(Ostatné[Suma šeku],Ostatné[Kód G/L],SúhrnMesačnýchVýdavkov[[#This Row],[Kód G/L]],Ostatné[Dátum žiadosti o šek],\">=\"&DATEVALUE(\" 1 \"&SúhrnMesačnýchVýdavkov[[#Headers],[Jún]]&_ROK),Ostatné[Dátum žiadosti o šek],\"<=\"&I$4)","v":{"v":0,"d":"0.00 EUR"}},{"$f":"SUMIFS(RozpisVýdavkov[Suma šeku],RozpisVýdavkov[Kód G/L],SúhrnMesačnýchVýdavkov[[#This Row],[Kód G/L]],RozpisVýdavkov[Dátum vystavenia faktúry],\">=\"&J$3,RozpisVýdavkov[Dátum vystavenia faktúry],\"<=\"&J$4)+SUMIFS(Ostatné[Suma šeku],Ostatné[Kód G/L],SúhrnMesačnýchVýdavkov[[#This Row],[Kód G/L]],Ostatné[Dátum žiadosti o šek],\">=\"&DATEVALUE(\" 1 \"&SúhrnMesačnýchVýdavkov[[#Headers],[Júl]]&_ROK),Ostatné[Dátum žiadosti o šek],\"<=\"&J$4)","v":{"v":0,"d":"0.00 EUR"}},{"$f":"SUMIFS(RozpisVýdavkov[Suma šeku],RozpisVýdavkov[Kód G/L],SúhrnMesačnýchVýdavkov[[#This Row],[Kód G/L]],RozpisVýdavkov[Dátum vystavenia faktúry],\">=\"&K$3,RozpisVýdavkov[Dátum vystavenia faktúry],\"<=\"&K$4)+SUMIFS(Ostatné[Suma šeku],Ostatné[Kód G/L],SúhrnMesačnýchVýdavkov[[#This Row],[Kód G/L]],Ostatné[Dátum žiadosti o šek],\">=\"&DATEVALUE(\" 1 \"&SúhrnMesačnýchVýdavkov[[#Headers],[August]]&_ROK),Ostatné[Dátum žiadosti o šek],\"<=\"&K$4)","v":{"v":0,"d":"0.00 EUR"}},{"$f":"SUMIFS(RozpisVýdavkov[Suma šeku],RozpisVýdavkov[Kód G/L],SúhrnMesačnýchVýdavkov[[#This Row],[Kód G/L]],RozpisVýdavkov[Dátum vystavenia faktúry],\">=\"&L$3,RozpisVýdavkov[Dátum vystavenia faktúry],\"<=\"&L$4)+SUMIFS(Ostatné[Suma šeku],Ostatné[Kód G/L],SúhrnMesačnýchVýdavkov[[#This Row],[Kód G/L]],Ostatné[Dátum žiadosti o šek],\">=\"&DATEVALUE(\" 1 \"&SúhrnMesačnýchVýdavkov[[#Headers],[September]]&_ROK),Ostatné[Dátum žiadosti o šek],\"<=\"&L$4)","v":{"v":0,"d":"0.00 EUR"}},{"$f":"SUMIFS(RozpisVýdavkov[Suma šeku],RozpisVýdavkov[Kód G/L],SúhrnMesačnýchVýdavkov[[#This Row],[Kód G/L]],RozpisVýdavkov[Dátum vystavenia faktúry],\">=\"&M$3,RozpisVýdavkov[Dátum vystavenia faktúry],\"<=\"&M$4)+SUMIFS(Ostatné[Suma šeku],Ostatné[Kód G/L],SúhrnMesačnýchVýdavkov[[#This Row],[Kód G/L]],Ostatné[Dátum žiadosti o šek],\">=\"&DATEVALUE(\" 1 \"&SúhrnMesačnýchVýdavkov[[#Headers],[Október]]&_ROK),Ostatné[Dátum žiadosti o šek],\"<=\"&M$4)","v":{"v":0,"d":"0.00 EUR"}},{"$f":"SUMIFS(RozpisVýdavkov[Suma šeku],RozpisVýdavkov[Kód G/L],SúhrnMesačnýchVýdavkov[[#This Row],[Kód G/L]],RozpisVýdavkov[Dátum vystavenia faktúry],\">=\"&N$3,RozpisVýdavkov[Dátum vystavenia faktúry],\"<=\"&N$4)+SUMIFS(Ostatné[Suma šeku],Ostatné[Kód G/L],SúhrnMesačnýchVýdavkov[[#This Row],[Kód G/L]],Ostatné[Dátum žiadosti o šek],\">=\"&DATEVALUE(\" 1 \"&SúhrnMesačnýchVýdavkov[[#Headers],[November]]&_ROK),Ostatné[Dátum žiadosti o šek],\"<=\"&N$4)","v":{"v":0,"d":"0.00 EUR"}},{"$f":"SUMIFS(RozpisVýdavkov[Suma šeku],RozpisVýdavkov[Kód G/L],SúhrnMesačnýchVýdavkov[[#This Row],[Kód G/L]],RozpisVýdavkov[Dátum vystavenia faktúry],\">=\"&O$3,RozpisVýdavkov[Dátum vystavenia faktúry],\"<=\"&O$4)+SUMIFS(Ostatné[Suma šeku],Ostatné[Kód G/L],SúhrnMesačnýchVýdavkov[[#This Row],[Kód G/L]],Ostatné[Dátum žiadosti o šek],\">=\"&DATEVALUE(\" 1 \"&SúhrnMesačnýchVýdavkov[[#Headers],[December]]&_ROK),Ostatné[Dátum žiadosti o šek],\"<=\"&O$4)","v":{"v":0,"d":"0.00 EUR"}},{"$f":"SUM(SúhrnMesačnýchVýdavkov[[#This Row],[Január]:[December]])","v":{"v":0,"d":"0.00 EUR"}}]
[null,7000,"Počítače",{"$f":"SUMIFS(RozpisVýdavkov[Suma šeku],RozpisVýdavkov[Kód G/L],SúhrnMesačnýchVýdavkov[[#This Row],[Kód G/L]],RozpisVýdavkov[Dátum vystavenia faktúry],\">=\"&D$3,RozpisVýdavkov[Dátum vystavenia faktúry],\"<=\"&D$4)+SUMIFS(Ostatné[Suma šeku],Ostatné[Kód G/L],SúhrnMesačnýchVýdavkov[[#This Row],[Kód G/L]],Ostatné[Dátum žiadosti o šek],\">=\"&DATEVALUE(\" 1 \"&SúhrnMesačnýchVýdavkov[[#Headers],[Január]]&_ROK),Ostatné[Dátum žiadosti o šek],\"<=\"&D$4)","v":{"v":0,"d":"0.00 EUR"}},{"$f":"SUMIFS(RozpisVýdavkov[Suma šeku],RozpisVýdavkov[Kód G/L],SúhrnMesačnýchVýdavkov[[#This Row],[Kód G/L]],RozpisVýdavkov[Dátum vystavenia faktúry],\">=\"&E$3,RozpisVýdavkov[Dátum vystavenia faktúry],\"<=\"&E$4)+SUMIFS(Ostatné[Suma šeku],Ostatné[Kód G/L],SúhrnMesačnýchVýdavkov[[#This Row],[Kód G/L]],Ostatné[Dátum žiadosti o šek],\">=\"&DATEVALUE(\" 1 \"&SúhrnMesačnýchVýdavkov[[#Headers],[Február]]&_ROK),Ostatné[Dátum žiadosti o šek],\"<=\"&E$4)","v":{"v":0,"d":"0.00 EUR"}},{"$f":"SUMIFS(RozpisVýdavkov[Suma šeku],RozpisVýdavkov[Kód G/L],SúhrnMesačnýchVýdavkov[[#This Row],[Kód G/L]],RozpisVýdavkov[Dátum vystavenia faktúry],\">=\"&F$3,RozpisVýdavkov[Dátum vystavenia faktúry],\"<=\"&F$4)+SUMIFS(Ostatné[Suma šeku],Ostatné[Kód G/L],SúhrnMesačnýchVýdavkov[[#This Row],[Kód G/L]],Ostatné[Dátum žiadosti o šek],\">=\"&DATEVALUE(\" 1 \"&SúhrnMesačnýchVýdavkov[[#Headers],[Marec]]&_ROK),Ostatné[Dátum žiadosti o šek],\"<=\"&F$4)","v":{"v":0,"d":"0.00 EUR"}},{"$f":"SUMIFS(RozpisVýdavkov[Suma šeku],RozpisVýdavkov[Kód G/L],SúhrnMesačnýchVýdavkov[[#This Row],[Kód G/L]],RozpisVýdavkov[Dátum vystavenia faktúry],\">=\"&G$3,RozpisVýdavkov[Dátum vystavenia faktúry],\"<=\"&G$4)+SUMIFS(Ostatné[Suma šeku],Ostatné[Kód G/L],SúhrnMesačnýchVýdavkov[[#This Row],[Kód G/L]],Ostatné[Dátum žiadosti o šek],\">=\"&DATEVALUE(\" 1 \"&SúhrnMesačnýchVýdavkov[[#Headers],[Apríl]]&_ROK),Ostatné[Dátum žiadosti o šek],\"<=\"&G$4)","v":{"v":0,"d":"0.00 EUR"}},{"$f":"SUMIFS(RozpisVýdavkov[Suma šeku],RozpisVýdavkov[Kód G/L],SúhrnMesačnýchVýdavkov[[#This Row],[Kód G/L]],RozpisVýdavkov[Dátum vystavenia faktúry],\">=\"&H$3,RozpisVýdavkov[Dátum vystavenia faktúry],\"<=\"&H$4)+SUMIFS(Ostatné[Suma šeku],Ostatné[Kód G/L],SúhrnMesačnýchVýdavkov[[#This Row],[Kód G/L]],Ostatné[Dátum žiadosti o šek],\">=\"&DATEVALUE(\" 1 \"&SúhrnMesačnýchVýdavkov[[#Headers],[Máj]]&_ROK),Ostatné[Dátum žiadosti o šek],\"<=\"&H$4)","v":{"v":0,"d":"0.00 EUR"}},{"$f":"SUMIFS(RozpisVýdavkov[Suma šeku],RozpisVýdavkov[Kód G/L],SúhrnMesačnýchVýdavkov[[#This Row],[Kód G/L]],RozpisVýdavkov[Dátum vystavenia faktúry],\">=\"&I$3,RozpisVýdavkov[Dátum vystavenia faktúry],\"<=\"&I$4)+SUMIFS(Ostatné[Suma šeku],Ostatné[Kód G/L],SúhrnMesačnýchVýdavkov[[#This Row],[Kód G/L]],Ostatné[Dátum žiadosti o šek],\">=\"&DATEVALUE(\" 1 \"&SúhrnMesačnýchVýdavkov[[#Headers],[Jún]]&_ROK),Ostatné[Dátum žiadosti o šek],\"<=\"&I$4)","v":{"v":0,"d":"0.00 EUR"}},{"$f":"SUMIFS(RozpisVýdavkov[Suma šeku],RozpisVýdavkov[Kód G/L],SúhrnMesačnýchVýdavkov[[#This Row],[Kód G/L]],RozpisVýdavkov[Dátum vystavenia faktúry],\">=\"&J$3,RozpisVýdavkov[Dátum vystavenia faktúry],\"<=\"&J$4)+SUMIFS(Ostatné[Suma šeku],Ostatné[Kód G/L],SúhrnMesačnýchVýdavkov[[#This Row],[Kód G/L]],Ostatné[Dátum žiadosti o šek],\">=\"&DATEVALUE(\" 1 \"&SúhrnMesačnýchVýdavkov[[#Headers],[Júl]]&_ROK),Ostatné[Dátum žiadosti o šek],\"<=\"&J$4)","v":{"v":0,"d":"0.00 EUR"}},{"$f":"SUMIFS(RozpisVýdavkov[Suma šeku],RozpisVýdavkov[Kód G/L],SúhrnMesačnýchVýdavkov[[#This Row],[Kód G/L]],RozpisVýdavkov[Dátum vystavenia faktúry],\">=\"&K$3,RozpisVýdavkov[Dátum vystavenia faktúry],\"<=\"&K$4)+SUMIFS(Ostatné[Suma šeku],Ostatné[Kód G/L],SúhrnMesačnýchVýdavkov[[#This Row],[Kód G/L]],Ostatné[Dátum žiadosti o šek],\">=\"&DATEVALUE(\" 1 \"&SúhrnMesačnýchVýdavkov[[#Headers],[August]]&_ROK),Ostatné[Dátum žiadosti o šek],\"<=\"&K$4)","v":{"v":0,"d":"0.00 EUR"}},{"$f":"SUMIFS(RozpisVýdavkov[Suma šeku],RozpisVýdavkov[Kód G/L],SúhrnMesačnýchVýdavkov[[#This Row],[Kód G/L]],RozpisVýdavkov[Dátum vystavenia faktúry],\">=\"&L$3,RozpisVýdavkov[Dátum vystavenia faktúry],\"<=\"&L$4)+SUMIFS(Ostatné[Suma šeku],Ostatné[Kód G/L],SúhrnMesačnýchVýdavkov[[#This Row],[Kód G/L]],Ostatné[Dátum žiadosti o šek],\">=\"&DATEVALUE(\" 1 \"&SúhrnMesačnýchVýdavkov[[#Headers],[September]]&_ROK),Ostatné[Dátum žiadosti o šek],\"<=\"&L$4)","v":{"v":0,"d":"0.00 EUR"}},{"$f":"SUMIFS(RozpisVýdavkov[Suma šeku],RozpisVýdavkov[Kód G/L],SúhrnMesačnýchVýdavkov[[#This Row],[Kód G/L]],RozpisVýdavkov[Dátum vystavenia faktúry],\">=\"&M$3,RozpisVýdavkov[Dátum vystavenia faktúry],\"<=\"&M$4)+SUMIFS(Ostatné[Suma šeku],Ostatné[Kód G/L],SúhrnMesačnýchVýdavkov[[#This Row],[Kód G/L]],Ostatné[Dátum žiadosti o šek],\">=\"&DATEVALUE(\" 1 \"&SúhrnMesačnýchVýdavkov[[#Headers],[Október]]&_ROK),Ostatné[Dátum žiadosti o šek],\"<=\"&M$4)","v":{"v":0,"d":"0.00 EUR"}},{"$f":"SUMIFS(RozpisVýdavkov[Suma šeku],RozpisVýdavkov[Kód G/L],SúhrnMesačnýchVýdavkov[[#This Row],[Kód G/L]],RozpisVýdavkov[Dátum vystavenia faktúry],\">=\"&N$3,RozpisVýdavkov[Dátum vystavenia faktúry],\"<=\"&N$4)+SUMIFS(Ostatné[Suma šeku],Ostatné[Kód G/L],SúhrnMesačnýchVýdavkov[[#This Row],[Kód G/L]],Ostatné[Dátum žiadosti o šek],\">=\"&DATEVALUE(\" 1 \"&SúhrnMesačnýchVýdavkov[[#Headers],[November]]&_ROK),Ostatné[Dátum žiadosti o šek],\"<=\"&N$4)","v":{"v":0,"d":"0.00 EUR"}},{"$f":"SUMIFS(RozpisVýdavkov[Suma šeku],RozpisVýdavkov[Kód G/L],SúhrnMesačnýchVýdavkov[[#This Row],[Kód G/L]],RozpisVýdavkov[Dátum vystavenia faktúry],\">=\"&O$3,RozpisVýdavkov[Dátum vystavenia faktúry],\"<=\"&O$4)+SUMIFS(Ostatné[Suma šeku],Ostatné[Kód G/L],SúhrnMesačnýchVýdavkov[[#This Row],[Kód G/L]],Ostatné[Dátum žiadosti o šek],\">=\"&DATEVALUE(\" 1 \"&SúhrnMesačnýchVýdavkov[[#Headers],[December]]&_ROK),Ostatné[Dátum žiadosti o šek],\"<=\"&O$4)","v":{"v":0,"d":"0.00 EUR"}},{"$f":"SUM(SúhrnMesačnýchVýdavkov[[#This Row],[Január]:[December]])","v":{"v":0,"d":"0.00 EUR"}}]
[null,8000,"Plán zdravotnej starostlivosti",{"$f":"SUMIFS(RozpisVýdavkov[Suma šeku],RozpisVýdavkov[Kód G/L],SúhrnMesačnýchVýdavkov[[#This Row],[Kód G/L]],RozpisVýdavkov[Dátum vystavenia faktúry],\">=\"&D$3,RozpisVýdavkov[Dátum vystavenia faktúry],\"<=\"&D$4)+SUMIFS(Ostatné[Suma šeku],Ostatné[Kód G/L],SúhrnMesačnýchVýdavkov[[#This Row],[Kód G/L]],Ostatné[Dátum žiadosti o šek],\">=\"&DATEVALUE(\" 1 \"&SúhrnMesačnýchVýdavkov[[#Headers],[Január]]&_ROK),Ostatné[Dátum žiadosti o šek],\"<=\"&D$4)","v":{"v":0,"d":"0.00 EUR"}},{"$f":"SUMIFS(RozpisVýdavkov[Suma šeku],RozpisVýdavkov[Kód G/L],SúhrnMesačnýchVýdavkov[[#This Row],[Kód G/L]],RozpisVýdavkov[Dátum vystavenia faktúry],\">=\"&E$3,RozpisVýdavkov[Dátum vystavenia faktúry],\"<=\"&E$4)+SUMIFS(Ostatné[Suma šeku],Ostatné[Kód G/L],SúhrnMesačnýchVýdavkov[[#This Row],[Kód G/L]],Ostatné[Dátum žiadosti o šek],\">=\"&DATEVALUE(\" 1 \"&SúhrnMesačnýchVýdavkov[[#Headers],[Február]]&_ROK),Ostatné[Dátum žiadosti o šek],\"<=\"&E$4)","v":{"v":0,"d":"0.00 EUR"}},{"$f":"SUMIFS(RozpisVýdavkov[Suma šeku],RozpisVýdavkov[Kód G/L],SúhrnMesačnýchVýdavkov[[#This Row],[Kód G/L]],RozpisVýdavkov[Dátum vystavenia faktúry],\">=\"&F$3,RozpisVýdavkov[Dátum vystavenia faktúry],\"<=\"&F$4)+SUMIFS(Ostatné[Suma šeku],Ostatné[Kód G/L],SúhrnMesačnýchVýdavkov[[#This Row],[Kód G/L]],Ostatné[Dátum žiadosti o šek],\">=\"&DATEVALUE(\" 1 \"&SúhrnMesačnýchVýdavkov[[#Headers],[Marec]]&_ROK),Ostatné[Dátum žiadosti o šek],\"<=\"&F$4)","v":{"v":0,"d":"0.00 EUR"}},{"$f":"SUMIFS(RozpisVýdavkov[Suma šeku],RozpisVýdavkov[Kód G/L],SúhrnMesačnýchVýdavkov[[#This Row],[Kód G/L]],RozpisVýdavkov[Dátum vystavenia faktúry],\">=\"&G$3,RozpisVýdavkov[Dátum vystavenia faktúry],\"<=\"&G$4)+SUMIFS(Ostatné[Suma šeku],Ostatné[Kód G/L],SúhrnMesačnýchVýdavkov[[#This Row],[Kód G/L]],Ostatné[Dátum žiadosti o šek],\">=\"&DATEVALUE(\" 1 \"&SúhrnMesačnýchVýdavkov[[#Headers],[Apríl]]&_ROK),Ostatné[Dátum žiadosti o šek],\"<=\"&G$4)","v":{"v":0,"d":"0.00 EUR"}},{"$f":"SUMIFS(RozpisVýdavkov[Suma šeku],RozpisVýdavkov[Kód G/L],SúhrnMesačnýchVýdavkov[[#This Row],[Kód G/L]],RozpisVýdavkov[Dátum vystavenia faktúry],\">=\"&H$3,RozpisVýdavkov[Dátum vystavenia faktúry],\"<=\"&H$4)+SUMIFS(Ostatné[Suma šeku],Ostatné[Kód G/L],SúhrnMesačnýchVýdavkov[[#This Row],[Kód G/L]],Ostatné[Dátum žiadosti o šek],\">=\"&DATEVALUE(\" 1 \"&SúhrnMesačnýchVýdavkov[[#Headers],[Máj]]&_ROK),Ostatné[Dátum žiadosti o šek],\"<=\"&H$4)","v":{"v":0,"d":"0.00 EUR"}},{"$f":"SUMIFS(RozpisVýdavkov[Suma šeku],RozpisVýdavkov[Kód G/L],SúhrnMesačnýchVýdavkov[[#This Row],[Kód G/L]],RozpisVýdavkov[Dátum vystavenia faktúry],\">=\"&I$3,RozpisVýdavkov[Dátum vystavenia faktúry],\"<=\"&I$4)+SUMIFS(Ostatné[Suma šeku],Ostatné[Kód G/L],SúhrnMesačnýchVýdavkov[[#This Row],[Kód G/L]],Ostatné[Dátum žiadosti o šek],\">=\"&DATEVALUE(\" 1 \"&SúhrnMesačnýchVýdavkov[[#Headers],[Jún]]&_ROK),Ostatné[Dátum žiadosti o šek],\"<=\"&I$4)","v":{"v":0,"d":"0.00 EUR"}},{"$f":"SUMIFS(RozpisVýdavkov[Suma šeku],RozpisVýdavkov[Kód G/L],SúhrnMesačnýchVýdavkov[[#This Row],[Kód G/L]],RozpisVýdavkov[Dátum vystavenia faktúry],\">=\"&J$3,RozpisVýdavkov[Dátum vystavenia faktúry],\"<=\"&J$4)+SUMIFS(Ostatné[Suma šeku],Ostatné[Kód G/L],SúhrnMesačnýchVýdavkov[[#This Row],[Kód G/L]],Ostatné[Dátum žiadosti o šek],\">=\"&DATEVALUE(\" 1 \"&SúhrnMesačnýchVýdavkov[[#Headers],[Júl]]&_ROK),Ostatné[Dátum žiadosti o šek],\"<=\"&J$4)","v":{"v":0,"d":"0.00 EUR"}},{"$f":"SUMIFS(RozpisVýdavkov[Suma šeku],RozpisVýdavkov[Kód G/L],SúhrnMesačnýchVýdavkov[[#This Row],[Kód G/L]],RozpisVýdavkov[Dátum vystavenia faktúry],\">=\"&K$3,RozpisVýdavkov[Dátum vystavenia faktúry],\"<=\"&K$4)+SUMIFS(Ostatné[Suma šeku],Ostatné[Kód G/L],SúhrnMesačnýchVýdavkov[[#This Row],[Kód G/L]],Ostatné[Dátum žiadosti o šek],\">=\"&DATEVALUE(\" 1 \"&SúhrnMesačnýchVýdavkov[[#Headers],[August]]&_ROK),Ostatné[Dátum žiadosti o šek],\"<=\"&K$4)","v":{"v":0,"d":"0.00 EUR"}},{"$f":"SUMIFS(RozpisVýdavkov[Suma šeku],RozpisVýdavkov[Kód G/L],SúhrnMesačnýchVýdavkov[[#This Row],[Kód G/L]],RozpisVýdavkov[Dátum vystavenia faktúry],\">=\"&L$3,RozpisVýdavkov[Dátum vystavenia faktúry],\"<=\"&L$4)+SUMIFS(Ostatné[Suma šeku],Ostatné[Kód G/L],SúhrnMesačnýchVýdavkov[[#This Row],[Kód G/L]],Ostatné[Dátum žiadosti o šek],\">=\"&DATEVALUE(\" 1 \"&SúhrnMesačnýchVýdavkov[[#Headers],[September]]&_ROK),Ostatné[Dátum žiadosti o šek],\"<=\"&L$4)","v":{"v":0,"d":"0.00 EUR"}},{"$f":"SUMIFS(RozpisVýdavkov[Suma šeku],RozpisVýdavkov[Kód G/L],SúhrnMesačnýchVýdavkov[[#This Row],[Kód G/L]],RozpisVýdavkov[Dátum vystavenia faktúry],\">=\"&M$3,RozpisVýdavkov[Dátum vystavenia faktúry],\"<=\"&M$4)+SUMIFS(Ostatné[Suma šeku],Ostatné[Kód G/L],SúhrnMesačnýchVýdavkov[[#This Row],[Kód G/L]],Ostatné[Dátum žiadosti o šek],\">=\"&DATEVALUE(\" 1 \"&SúhrnMesačnýchVýdavkov[[#Headers],[Október]]&_ROK),Ostatné[Dátum žiadosti o šek],\"<=\"&M$4)","v":{"v":0,"d":"0.00 EUR"}},{"$f":"SUMIFS(RozpisVýdavkov[Suma šeku],RozpisVýdavkov[Kód G/L],SúhrnMesačnýchVýdavkov[[#This Row],[Kód G/L]],RozpisVýdavkov[Dátum vystavenia faktúry],\">=\"&N$3,RozpisVýdavkov[Dátum vystavenia faktúry],\"<=\"&N$4)+SUMIFS(Ostatné[Suma šeku],Ostatné[Kód G/L],SúhrnMesačnýchVýdavkov[[#This Row],[Kód G/L]],Ostatné[Dátum žiadosti o šek],\">=\"&DATEVALUE(\" 1 \"&SúhrnMesačnýchVýdavkov[[#Headers],[November]]&_ROK),Ostatné[Dátum žiadosti o šek],\"<=\"&N$4)","v":{"v":0,"d":"0.00 EUR"}},{"$f":"SUMIFS(RozpisVýdavkov[Suma šeku],RozpisVýdavkov[Kód G/L],SúhrnMesačnýchVýdavkov[[#This Row],[Kód G/L]],RozpisVýdavkov[Dátum vystavenia faktúry],\">=\"&O$3,RozpisVýdavkov[Dátum vystavenia faktúry],\"<=\"&O$4)+SUMIFS(Ostatné[Suma šeku],Ostatné[Kód G/L],SúhrnMesačnýchVýdavkov[[#This Row],[Kód G/L]],Ostatné[Dátum žiadosti o šek],\">=\"&DATEVALUE(\" 1 \"&SúhrnMesačnýchVýdavkov[[#Headers],[December]]&_ROK),Ostatné[Dátum žiadosti o šek],\"<=\"&O$4)","v":{"v":0,"d":"0.00 EUR"}},{"$f":"SUM(SúhrnMesačnýchVýdavkov[[#This Row],[Január]:[December]])","v":{"v":0,"d":"0.00 EUR"}}]
[null,9000,"Náklady na budovu",{"$f":"SUMIFS(RozpisVýdavkov[Suma šeku],RozpisVýdavkov[Kód G/L],SúhrnMesačnýchVýdavkov[[#This Row],[Kód G/L]],RozpisVýdavkov[Dátum vystavenia faktúry],\">=\"&D$3,RozpisVýdavkov[Dátum vystavenia faktúry],\"<=\"&D$4)+SUMIFS(Ostatné[Suma šeku],Ostatné[Kód G/L],SúhrnMesačnýchVýdavkov[[#This Row],[Kód G/L]],Ostatné[Dátum žiadosti o šek],\">=\"&DATEVALUE(\" 1 \"&SúhrnMesačnýchVýdavkov[[#Headers],[Január]]&_ROK),Ostatné[Dátum žiadosti o šek],\"<=\"&D$4)","v":{"v":0,"d":"0.00 EUR"}},{"$f":"SUMIFS(RozpisVýdavkov[Suma šeku],RozpisVýdavkov[Kód G/L],SúhrnMesačnýchVýdavkov[[#This Row],[Kód G/L]],RozpisVýdavkov[Dátum vystavenia faktúry],\">=\"&E$3,RozpisVýdavkov[Dátum vystavenia faktúry],\"<=\"&E$4)+SUMIFS(Ostatné[Suma šeku],Ostatné[Kód G/L],SúhrnMesačnýchVýdavkov[[#This Row],[Kód G/L]],Ostatné[Dátum žiadosti o šek],\">=\"&DATEVALUE(\" 1 \"&SúhrnMesačnýchVýdavkov[[#Headers],[Február]]&_ROK),Ostatné[Dátum žiadosti o šek],\"<=\"&E$4)","v":{"v":0,"d":"0.00 EUR"}},{"$f":"SUMIFS(RozpisVýdavkov[Suma šeku],RozpisVýdavkov[Kód G/L],SúhrnMesačnýchVýdavkov[[#This Row],[Kód G/L]],RozpisVýdavkov[Dátum vystavenia faktúry],\">=\"&F$3,RozpisVýdavkov[Dátum vystavenia faktúry],\"<=\"&F$4)+SUMIFS(Ostatné[Suma šeku],Ostatné[Kód G/L],SúhrnMesačnýchVýdavkov[[#This Row],[Kód G/L]],Ostatné[Dátum žiadosti o šek],\">=\"&DATEVALUE(\" 1 \"&SúhrnMesačnýchVýdavkov[[#Headers],[Marec]]&_ROK),Ostatné[Dátum žiadosti o šek],\"<=\"&F$4)","v":{"v":0,"d":"0.00 EUR"}},{"$f":"SUMIFS(RozpisVýdavkov[Suma šeku],RozpisVýdavkov[Kód G/L],SúhrnMesačnýchVýdavkov[[#This Row],[Kód G/L]],RozpisVýdavkov[Dátum vystavenia faktúry],\">=\"&G$3,RozpisVýdavkov[Dátum vystavenia faktúry],\"<=\"&G$4)+SUMIFS(Ostatné[Suma šeku],Ostatné[Kód G/L],SúhrnMesačnýchVýdavkov[[#This Row],[Kód G/L]],Ostatné[Dátum žiadosti o šek],\">=\"&DATEVALUE(\" 1 \"&SúhrnMesačnýchVýdavkov[[#Headers],[Apríl]]&_ROK),Ostatné[Dátum žiadosti o šek],\"<=\"&G$4)","v":{"v":0,"d":"0.00 EUR"}},{"$f":"SUMIFS(RozpisVýdavkov[Suma šeku],RozpisVýdavkov[Kód G/L],SúhrnMesačnýchVýdavkov[[#This Row],[Kód G/L]],RozpisVýdavkov[Dátum vystavenia faktúry],\">=\"&H$3,RozpisVýdavkov[Dátum vystavenia faktúry],\"<=\"&H$4)+SUMIFS(Ostatné[Suma šeku],Ostatné[Kód G/L],SúhrnMesačnýchVýdavkov[[#This Row],[Kód G/L]],Ostatné[Dátum žiadosti o šek],\">=\"&DATEVALUE(\" 1 \"&SúhrnMesačnýchVýdavkov[[#Headers],[Máj]]&_ROK),Ostatné[Dátum žiadosti o šek],\"<=\"&H$4)","v":{"v":0,"d":"0.00 EUR"}},{"$f":"SUMIFS(RozpisVýdavkov[Suma šeku],RozpisVýdavkov[Kód G/L],SúhrnMesačnýchVýdavkov[[#This Row],[Kód G/L]],RozpisVýdavkov[Dátum vystavenia faktúry],\">=\"&I$3,RozpisVýdavkov[Dátum vystavenia faktúry],\"<=\"&I$4)+SUMIFS(Ostatné[Suma šeku],Ostatné[Kód G/L],SúhrnMesačnýchVýdavkov[[#This Row],[Kód G/L]],Ostatné[Dátum žiadosti o šek],\">=\"&DATEVALUE(\" 1 \"&SúhrnMesačnýchVýdavkov[[#Headers],[Jún]]&_ROK),Ostatné[Dátum žiadosti o šek],\"<=\"&I$4)","v":{"v":0,"d":"0.00 EUR"}},{"$f":"SUMIFS(RozpisVýdavkov[Suma šeku],RozpisVýdavkov[Kód G/L],SúhrnMesačnýchVýdavkov[[#This Row],[Kód G/L]],RozpisVýdavkov[Dátum vystavenia faktúry],\">=\"&J$3,RozpisVýdavkov[Dátum vystavenia faktúry],\"<=\"&J$4)+SUMIFS(Ostatné[Suma šeku],Ostatné[Kód G/L],SúhrnMesačnýchVýdavkov[[#This Row],[Kód G/L]],Ostatné[Dátum žiadosti o šek],\">=\"&DATEVALUE(\" 1 \"&SúhrnMesačnýchVýdavkov[[#Headers],[Júl]]&_ROK),Ostatné[Dátum žiadosti o šek],\"<=\"&J$4)","v":{"v":0,"d":"0.00 EUR"}},{"$f":"SUMIFS(RozpisVýdavkov[Suma šeku],RozpisVýdavkov[Kód G/L],SúhrnMesačnýchVýdavkov[[#This Row],[Kód G/L]],RozpisVýdavkov[Dátum vystavenia faktúry],\">=\"&K$3,RozpisVýdavkov[Dátum vystavenia faktúry],\"<=\"&K$4)+SUMIFS(Ostatné[Suma šeku],Ostatné[Kód G/L],SúhrnMesačnýchVýdavkov[[#This Row],[Kód G/L]],Ostatné[Dátum žiadosti o šek],\">=\"&DATEVALUE(\" 1 \"&SúhrnMesačnýchVýdavkov[[#Headers],[August]]&_ROK),Ostatné[Dátum žiadosti o šek],\"<=\"&K$4)","v":{"v":0,"d":"0.00 EUR"}},{"$f":"SUMIFS(RozpisVýdavkov[Suma šeku],RozpisVýdavkov[Kód G/L],SúhrnMesačnýchVýdavkov[[#This Row],[Kód G/L]],RozpisVýdavkov[Dátum vystavenia faktúry],\">=\"&L$3,RozpisVýdavkov[Dátum vystavenia faktúry],\"<=\"&L$4)+SUMIFS(Ostatné[Suma šeku],Ostatné[Kód G/L],SúhrnMesačnýchVýdavkov[[#This Row],[Kód G/L]],Ostatné[Dátum žiadosti o šek],\">=\"&DATEVALUE(\" 1 \"&SúhrnMesačnýchVýdavkov[[#Headers],[September]]&_ROK),Ostatné[Dátum žiadosti o šek],\"<=\"&L$4)","v":{"v":0,"d":"0.00 EUR"}},{"$f":"SUMIFS(RozpisVýdavkov[Suma šeku],RozpisVýdavkov[Kód G/L],SúhrnMesačnýchVýdavkov[[#This Row],[Kód G/L]],RozpisVýdavkov[Dátum vystavenia faktúry],\">=\"&M$3,RozpisVýdavkov[Dátum vystavenia faktúry],\"<=\"&M$4)+SUMIFS(Ostatné[Suma šeku],Ostatné[Kód G/L],SúhrnMesačnýchVýdavkov[[#This Row],[Kód G/L]],Ostatné[Dátum žiadosti o šek],\">=\"&DATEVALUE(\" 1 \"&SúhrnMesačnýchVýdavkov[[#Headers],[Október]]&_ROK),Ostatné[Dátum žiadosti o šek],\"<=\"&M$4)","v":{"v":0,"d":"0.00 EUR"}},{"$f":"SUMIFS(RozpisVýdavkov[Suma šeku],RozpisVýdavkov[Kód G/L],SúhrnMesačnýchVýdavkov[[#This Row],[Kód G/L]],RozpisVýdavkov[Dátum vystavenia faktúry],\">=\"&N$3,RozpisVýdavkov[Dátum vystavenia faktúry],\"<=\"&N$4)+SUMIFS(Ostatné[Suma šeku],Ostatné[Kód G/L],SúhrnMesačnýchVýdavkov[[#This Row],[Kód G/L]],Ostatné[Dátum žiadosti o šek],\">=\"&DATEVALUE(\" 1 \"&SúhrnMesačnýchVýdavkov[[#Headers],[November]]&_ROK),Ostatné[Dátum žiadosti o šek],\"<=\"&N$4)","v":{"v":0,"d":"0.00 EUR"}},{"$f":"SUMIFS(RozpisVýdavkov[Suma šeku],RozpisVýdavkov[Kód G/L],SúhrnMesačnýchVýdavkov[[#This Row],[Kód G/L]],RozpisVýdavkov[Dátum vystavenia faktúry],\">=\"&O$3,RozpisVýdavkov[Dátum vystavenia faktúry],\"<=\"&O$4)+SUMIFS(Ostatné[Suma šeku],Ostatné[Kód G/L],SúhrnMesačnýchVýdavkov[[#This Row],[Kód G/L]],Ostatné[Dátum žiadosti o šek],\">=\"&DATEVALUE(\" 1 \"&SúhrnMesačnýchVýdavkov[[#Headers],[December]]&_ROK),Ostatné[Dátum žiadosti o šek],\"<=\"&O$4)","v":{"v":0,"d":"0.00 EUR"}},{"$f":"SUM(SúhrnMesačnýchVýdavkov[[#This Row],[Január]:[December]])","v":{"v":0,"d":"0.00 EUR"}}]
[null,10000,"Marketing",{"$f":"SUMIFS(RozpisVýdavkov[Suma šeku],RozpisVýdavkov[Kód G/L],SúhrnMesačnýchVýdavkov[[#This Row],[Kód G/L]],RozpisVýdavkov[Dátum vystavenia faktúry],\">=\"&D$3,RozpisVýdavkov[Dátum vystavenia faktúry],\"<=\"&D$4)+SUMIFS(Ostatné[Suma šeku],Ostatné[Kód G/L],SúhrnMesačnýchVýdavkov[[#This Row],[Kód G/L]],Ostatné[Dátum žiadosti o šek],\">=\"&DATEVALUE(\" 1 \"&SúhrnMesačnýchVýdavkov[[#Headers],[Január]]&_ROK),Ostatné[Dátum žiadosti o šek],\"<=\"&D$4)","v":{"v":0,"d":"0.00 EUR"}},{"$f":"SUMIFS(RozpisVýdavkov[Suma šeku],RozpisVýdavkov[Kód G/L],SúhrnMesačnýchVýdavkov[[#This Row],[Kód G/L]],RozpisVýdavkov[Dátum vystavenia faktúry],\">=\"&E$3,RozpisVýdavkov[Dátum vystavenia faktúry],\"<=\"&E$4)+SUMIFS(Ostatné[Suma šeku],Ostatné[Kód G/L],SúhrnMesačnýchVýdavkov[[#This Row],[Kód G/L]],Ostatné[Dátum žiadosti o šek],\">=\"&DATEVALUE(\" 1 \"&SúhrnMesačnýchVýdavkov[[#Headers],[Február]]&_ROK),Ostatné[Dátum žiadosti o šek],\"<=\"&E$4)","v":{"v":0,"d":"0.00 EUR"}},{"$f":"SUMIFS(RozpisVýdavkov[Suma šeku],RozpisVýdavkov[Kód G/L],SúhrnMesačnýchVýdavkov[[#This Row],[Kód G/L]],RozpisVýdavkov[Dátum vystavenia faktúry],\">=\"&F$3,RozpisVýdavkov[Dátum vystavenia faktúry],\"<=\"&F$4)+SUMIFS(Ostatné[Suma šeku],Ostatné[Kód G/L],SúhrnMesačnýchVýdavkov[[#This Row],[Kód G/L]],Ostatné[Dátum žiadosti o šek],\">=\"&DATEVALUE(\" 1 \"&SúhrnMesačnýchVýdavkov[[#Headers],[Marec]]&_ROK),Ostatné[Dátum žiadosti o šek],\"<=\"&F$4)","v":{"v":0,"d":"0.00 EUR"}},{"$f":"SUMIFS(RozpisVýdavkov[Suma šeku],RozpisVýdavkov[Kód G/L],SúhrnMesačnýchVýdavkov[[#This Row],[Kód G/L]],RozpisVýdavkov[Dátum vystavenia faktúry],\">=\"&G$3,RozpisVýdavkov[Dátum vystavenia faktúry],\"<=\"&G$4)+SUMIFS(Ostatné[Suma šeku],Ostatné[Kód G/L],SúhrnMesačnýchVýdavkov[[#This Row],[Kód G/L]],Ostatné[Dátum žiadosti o šek],\">=\"&DATEVALUE(\" 1 \"&SúhrnMesačnýchVýdavkov[[#Headers],[Apríl]]&_ROK),Ostatné[Dátum žiadosti o šek],\"<=\"&G$4)","v":{"v":0,"d":"0.00 EUR"}},{"$f":"SUMIFS(RozpisVýdavkov[Suma šeku],RozpisVýdavkov[Kód G/L],SúhrnMesačnýchVýdavkov[[#This Row],[Kód G/L]],RozpisVýdavkov[Dátum vystavenia faktúry],\">=\"&H$3,RozpisVýdavkov[Dátum vystavenia faktúry],\"<=\"&H$4)+SUMIFS(Ostatné[Suma šeku],Ostatné[Kód G/L],SúhrnMesačnýchVýdavkov[[#This Row],[Kód G/L]],Ostatné[Dátum žiadosti o šek],\">=\"&DATEVALUE(\" 1 \"&SúhrnMesačnýchVýdavkov[[#Headers],[Máj]]&_ROK),Ostatné[Dátum žiadosti o šek],\"<=\"&H$4)","v":{"v":0,"d":"0.00 EUR"}},{"$f":"SUMIFS(RozpisVýdavkov[Suma šeku],RozpisVýdavkov[Kód G/L],SúhrnMesačnýchVýdavkov[[#This Row],[Kód G/L]],RozpisVýdavkov[Dátum vystavenia faktúry],\">=\"&I$3,RozpisVýdavkov[Dátum vystavenia faktúry],\"<=\"&I$4)+SUMIFS(Ostatné[Suma šeku],Ostatné[Kód G/L],SúhrnMesačnýchVýdavkov[[#This Row],[Kód G/L]],Ostatné[Dátum žiadosti o šek],\">=\"&DATEVALUE(\" 1 \"&SúhrnMesačnýchVýdavkov[[#Headers],[Jún]]&_ROK),Ostatné[Dátum žiadosti o šek],\"<=\"&I$4)","v":{"v":0,"d":"0.00 EUR"}},{"$f":"SUMIFS(RozpisVýdavkov[Suma šeku],RozpisVýdavkov[Kód G/L],SúhrnMesačnýchVýdavkov[[#This Row],[Kód G/L]],RozpisVýdavkov[Dátum vystavenia faktúry],\">=\"&J$3,RozpisVýdavkov[Dátum vystavenia faktúry],\"<=\"&J$4)+SUMIFS(Ostatné[Suma šeku],Ostatné[Kód G/L],SúhrnMesačnýchVýdavkov[[#This Row],[Kód G/L]],Ostatné[Dátum žiadosti o šek],\">=\"&DATEVALUE(\" 1 \"&SúhrnMesačnýchVýdavkov[[#Headers],[Júl]]&_ROK),Ostatné[Dátum žiadosti o šek],\"<=\"&J$4)","v":{"v":0,"d":"0.00 EUR"}},{"$f":"SUMIFS(RozpisVýdavkov[Suma šeku],RozpisVýdavkov[Kód G/L],SúhrnMesačnýchVýdavkov[[#This Row],[Kód G/L]],RozpisVýdavkov[Dátum vystavenia faktúry],\">=\"&K$3,RozpisVýdavkov[Dátum vystavenia faktúry],\"<=\"&K$4)+SUMIFS(Ostatné[Suma šeku],Ostatné[Kód G/L],SúhrnMesačnýchVýdavkov[[#This Row],[Kód G/L]],Ostatné[Dátum žiadosti o šek],\">=\"&DATEVALUE(\" 1 \"&SúhrnMesačnýchVýdavkov[[#Headers],[August]]&_ROK),Ostatné[Dátum žiadosti o šek],\"<=\"&K$4)","v":{"v":0,"d":"0.00 EUR"}},{"$f":"SUMIFS(RozpisVýdavkov[Suma šeku],RozpisVýdavkov[Kód G/L],SúhrnMesačnýchVýdavkov[[#This Row],[Kód G/L]],RozpisVýdavkov[Dátum vystavenia faktúry],\">=\"&L$3,RozpisVýdavkov[Dátum vystavenia faktúry],\"<=\"&L$4)+SUMIFS(Ostatné[Suma šeku],Ostatné[Kód G/L],SúhrnMesačnýchVýdavkov[[#This Row],[Kód G/L]],Ostatné[Dátum žiadosti o šek],\">=\"&DATEVALUE(\" 1 \"&SúhrnMesačnýchVýdavkov[[#Headers],[September]]&_ROK),Ostatné[Dátum žiadosti o šek],\"<=\"&L$4)","v":{"v":0,"d":"0.00 EUR"}},{"$f":"SUMIFS(RozpisVýdavkov[Suma šeku],RozpisVýdavkov[Kód G/L],SúhrnMesačnýchVýdavkov[[#This Row],[Kód G/L]],RozpisVýdavkov[Dátum vystavenia faktúry],\">=\"&M$3,RozpisVýdavkov[Dátum vystavenia faktúry],\"<=\"&M$4)+SUMIFS(Ostatné[Suma šeku],Ostatné[Kód G/L],SúhrnMesačnýchVýdavkov[[#This Row],[Kód G/L]],Ostatné[Dátum žiadosti o šek],\">=\"&DATEVALUE(\" 1 \"&SúhrnMesačnýchVýdavkov[[#Headers],[Október]]&_ROK),Ostatné[Dátum žiadosti o šek],\"<=\"&M$4)","v":{"v":0,"d":"0.00 EUR"}},{"$f":"SUMIFS(RozpisVýdavkov[Suma šeku],RozpisVýdavkov[Kód G/L],SúhrnMesačnýchVýdavkov[[#This Row],[Kód G/L]],RozpisVýdavkov[Dátum vystavenia faktúry],\">=\"&N$3,RozpisVýdavkov[Dátum vystavenia faktúry],\"<=\"&N$4)+SUMIFS(Ostatné[Suma šeku],Ostatné[Kód G/L],SúhrnMesačnýchVýdavkov[[#This Row],[Kód G/L]],Ostatné[Dátum žiadosti o šek],\">=\"&DATEVALUE(\" 1 \"&SúhrnMesačnýchVýdavkov[[#Headers],[November]]&_ROK),Ostatné[Dátum žiadosti o šek],\"<=\"&N$4)","v":{"v":0,"d":"0.00 EUR"}},{"$f":"SUMIFS(RozpisVýdavkov[Suma šeku],RozpisVýdavkov[Kód G/L],SúhrnMesačnýchVýdavkov[[#This Row],[Kód G/L]],RozpisVýdavkov[Dátum vystavenia faktúry],\">=\"&O$3,RozpisVýdavkov[Dátum vystavenia faktúry],\"<=\"&O$4)+SUMIFS(Ostatné[Suma šeku],Ostatné[Kód G/L],SúhrnMesačnýchVýdavkov[[#This Row],[Kód G/L]],Ostatné[Dátum žiadosti o šek],\">=\"&DATEVALUE(\" 1 \"&SúhrnMesačnýchVýdavkov[[#Headers],[December]]&_ROK),Ostatné[Dátum žiadosti o šek],\"<=\"&O$4)","v":{"v":0,"d":"0.00 EUR"}},{"$f":"SUM(SúhrnMesačnýchVýdavkov[[#This Row],[Január]:[December]])","v":{"v":0,"d":"0.00 EUR"}}]
[null,11000,"Charita",{"$f":"SUMIFS(RozpisVýdavkov[Suma šeku],RozpisVýdavkov[Kód G/L],SúhrnMesačnýchVýdavkov[[#This Row],[Kód G/L]],RozpisVýdavkov[Dátum vystavenia faktúry],\">=\"&D$3,RozpisVýdavkov[Dátum vystavenia faktúry],\"<=\"&D$4)+SUMIFS(Ostatné[Suma šeku],Ostatné[Kód G/L],SúhrnMesačnýchVýdavkov[[#This Row],[Kód G/L]],Ostatné[Dátum žiadosti o šek],\">=\"&DATEVALUE(\" 1 \"&SúhrnMesačnýchVýdavkov[[#Headers],[Január]]&_ROK),Ostatné[Dátum žiadosti o šek],\"<=\"&D$4)","v":{"v":0,"d":"0.00 EUR"}},{"$f":"SUMIFS(RozpisVýdavkov[Suma šeku],RozpisVýdavkov[Kód G/L],SúhrnMesačnýchVýdavkov[[#This Row],[Kód G/L]],RozpisVýdavkov[Dátum vystavenia faktúry],\">=\"&E$3,RozpisVýdavkov[Dátum vystavenia faktúry],\"<=\"&E$4)+SUMIFS(Ostatné[Suma šeku],Ostatné[Kód G/L],SúhrnMesačnýchVýdavkov[[#This Row],[Kód G/L]],Ostatné[Dátum žiadosti o šek],\">=\"&DATEVALUE(\" 1 \"&SúhrnMesačnýchVýdavkov[[#Headers],[Február]]&_ROK),Ostatné[Dátum žiadosti o šek],\"<=\"&E$4)","v":{"v":0,"d":"0.00 EUR"}},{"$f":"SUMIFS(RozpisVýdavkov[Suma šeku],RozpisVýdavkov[Kód G/L],SúhrnMesačnýchVýdavkov[[#This Row],[Kód G/L]],RozpisVýdavkov[Dátum vystavenia faktúry],\">=\"&F$3,RozpisVýdavkov[Dátum vystavenia faktúry],\"<=\"&F$4)+SUMIFS(Ostatné[Suma šeku],Ostatné[Kód G/L],SúhrnMesačnýchVýdavkov[[#This Row],[Kód G/L]],Ostatné[Dátum žiadosti o šek],\">=\"&DATEVALUE(\" 1 \"&SúhrnMesačnýchVýdavkov[[#Headers],[Marec]]&_ROK),Ostatné[Dátum žiadosti o šek],\"<=\"&F$4)","v":{"v":0,"d":"0.00 EUR"}},{"$f":"SUMIFS(RozpisVýdavkov[Suma šeku],RozpisVýdavkov[Kód G/L],SúhrnMesačnýchVýdavkov[[#This Row],[Kód G/L]],RozpisVýdavkov[Dátum vystavenia faktúry],\">=\"&G$3,RozpisVýdavkov[Dátum vystavenia faktúry],\"<=\"&G$4)+SUMIFS(Ostatné[Suma šeku],Ostatné[Kód G/L],SúhrnMesačnýchVýdavkov[[#This Row],[Kód G/L]],Ostatné[Dátum žiadosti o šek],\">=\"&DATEVALUE(\" 1 \"&SúhrnMesačnýchVýdavkov[[#Headers],[Apríl]]&_ROK),Ostatné[Dátum žiadosti o šek],\"<=\"&G$4)","v":{"v":0,"d":"0.00 EUR"}},{"$f":"SUMIFS(RozpisVýdavkov[Suma šeku],RozpisVýdavkov[Kód G/L],SúhrnMesačnýchVýdavkov[[#This Row],[Kód G/L]],RozpisVýdavkov[Dátum vystavenia faktúry],\">=\"&H$3,RozpisVýdavkov[Dátum vystavenia faktúry],\"<=\"&H$4)+SUMIFS(Ostatné[Suma šeku],Ostatné[Kód G/L],SúhrnMesačnýchVýdavkov[[#This Row],[Kód G/L]],Ostatné[Dátum žiadosti o šek],\">=\"&DATEVALUE(\" 1 \"&SúhrnMesačnýchVýdavkov[[#Headers],[Máj]]&_ROK),Ostatné[Dátum žiadosti o šek],\"<=\"&H$4)","v":{"v":0,"d":"0.00 EUR"}},{"$f":"SUMIFS(RozpisVýdavkov[Suma šeku],RozpisVýdavkov[Kód G/L],SúhrnMesačnýchVýdavkov[[#This Row],[Kód G/L]],RozpisVýdavkov[Dátum vystavenia faktúry],\">=\"&I$3,RozpisVýdavkov[Dátum vystavenia faktúry],\"<=\"&I$4)+SUMIFS(Ostatné[Suma šeku],Ostatné[Kód G/L],SúhrnMesačnýchVýdavkov[[#This Row],[Kód G/L]],Ostatné[Dátum žiadosti o šek],\">=\"&DATEVALUE(\" 1 \"&SúhrnMesačnýchVýdavkov[[#Headers],[Jún]]&_ROK),Ostatné[Dátum žiadosti o šek],\"<=\"&I$4)","v":{"v":0,"d":"0.00 EUR"}},{"$f":"SUMIFS(RozpisVýdavkov[Suma šeku],RozpisVýdavkov[Kód G/L],SúhrnMesačnýchVýdavkov[[#This Row],[Kód G/L]],RozpisVýdavkov[Dátum vystavenia faktúry],\">=\"&J$3,RozpisVýdavkov[Dátum vystavenia faktúry],\"<=\"&J$4)+SUMIFS(Ostatné[Suma šeku],Ostatné[Kód G/L],SúhrnMesačnýchVýdavkov[[#This Row],[Kód G/L]],Ostatné[Dátum žiadosti o šek],\">=\"&DATEVALUE(\" 1 \"&SúhrnMesačnýchVýdavkov[[#Headers],[Júl]]&_ROK),Ostatné[Dátum žiadosti o šek],\"<=\"&J$4)","v":{"v":0,"d":"0.00 EUR"}},{"$f":"SUMIFS(RozpisVýdavkov[Suma šeku],RozpisVýdavkov[Kód G/L],SúhrnMesačnýchVýdavkov[[#This Row],[Kód G/L]],RozpisVýdavkov[Dátum vystavenia faktúry],\">=\"&K$3,RozpisVýdavkov[Dátum vystavenia faktúry],\"<=\"&K$4)+SUMIFS(Ostatné[Suma šeku],Ostatné[Kód G/L],SúhrnMesačnýchVýdavkov[[#This Row],[Kód G/L]],Ostatné[Dátum žiadosti o šek],\">=\"&DATEVALUE(\" 1 \"&SúhrnMesačnýchVýdavkov[[#Headers],[August]]&_ROK),Ostatné[Dátum žiadosti o šek],\"<=\"&K$4)","v":{"v":0,"d":"0.00 EUR"}},{"$f":"SUMIFS(RozpisVýdavkov[Suma šeku],RozpisVýdavkov[Kód G/L],SúhrnMesačnýchVýdavkov[[#This Row],[Kód G/L]],RozpisVýdavkov[Dátum vystavenia faktúry],\">=\"&L$3,RozpisVýdavkov[Dátum vystavenia faktúry],\"<=\"&L$4)+SUMIFS(Ostatné[Suma šeku],Ostatné[Kód G/L],SúhrnMesačnýchVýdavkov[[#This Row],[Kód G/L]],Ostatné[Dátum žiadosti o šek],\">=\"&DATEVALUE(\" 1 \"&SúhrnMesačnýchVýdavkov[[#Headers],[September]]&_ROK),Ostatné[Dátum žiadosti o šek],\"<=\"&L$4)","v":{"v":0,"d":"0.00 EUR"}},{"$f":"SUMIFS(RozpisVýdavkov[Suma šeku],RozpisVýdavkov[Kód G/L],SúhrnMesačnýchVýdavkov[[#This Row],[Kód G/L]],RozpisVýdavkov[Dátum vystavenia faktúry],\">=\"&M$3,RozpisVýdavkov[Dátum vystavenia faktúry],\"<=\"&M$4)+SUMIFS(Ostatné[Suma šeku],Ostatné[Kód G/L],SúhrnMesačnýchVýdavkov[[#This Row],[Kód G/L]],Ostatné[Dátum žiadosti o šek],\">=\"&DATEVALUE(\" 1 \"&SúhrnMesačnýchVýdavkov[[#Headers],[Október]]&_ROK),Ostatné[Dátum žiadosti o šek],\"<=\"&M$4)","v":{"v":0,"d":"0.00 EUR"}},{"$f":"SUMIFS(RozpisVýdavkov[Suma šeku],RozpisVýdavkov[Kód G/L],SúhrnMesačnýchVýdavkov[[#This Row],[Kód G/L]],RozpisVýdavkov[Dátum vystavenia faktúry],\">=\"&N$3,RozpisVýdavkov[Dátum vystavenia faktúry],\"<=\"&N$4)+SUMIFS(Ostatné[Suma šeku],Ostatné[Kód G/L],SúhrnMesačnýchVýdavkov[[#This Row],[Kód G/L]],Ostatné[Dátum žiadosti o šek],\">=\"&DATEVALUE(\" 1 \"&SúhrnMesačnýchVýdavkov[[#Headers],[November]]&_ROK),Ostatné[Dátum žiadosti o šek],\"<=\"&N$4)","v":{"v":0,"d":"0.00 EUR"}},{"$f":"SUMIFS(RozpisVýdavkov[Suma šeku],RozpisVýdavkov[Kód G/L],SúhrnMesačnýchVýdavkov[[#This Row],[Kód G/L]],RozpisVýdavkov[Dátum vystavenia faktúry],\">=\"&O$3,RozpisVýdavkov[Dátum vystavenia faktúry],\"<=\"&O$4)+SUMIFS(Ostatné[Suma šeku],Ostatné[Kód G/L],SúhrnMesačnýchVýdavkov[[#This Row],[Kód G/L]],Ostatné[Dátum žiadosti o šek],\">=\"&DATEVALUE(\" 1 \"&SúhrnMesačnýchVýdavkov[[#Headers],[December]]&_ROK),Ostatné[Dátum žiadosti o šek],\"<=\"&O$4)","v":{"v":0,"d":"0.00 EUR"}},{"$f":"SUM(SúhrnMesačnýchVýdavkov[[#This Row],[Január]:[December]])","v":{"v":0,"d":"0.00 EUR"}}]
[null,12000,"Sponzorstvá",{"$f":"SUMIFS(RozpisVýdavkov[Suma šeku],RozpisVýdavkov[Kód G/L],SúhrnMesačnýchVýdavkov[[#This Row],[Kód G/L]],RozpisVýdavkov[Dátum vystavenia faktúry],\">=\"&D$3,RozpisVýdavkov[Dátum vystavenia faktúry],\"<=\"&D$4)+SUMIFS(Ostatné[Suma šeku],Ostatné[Kód G/L],SúhrnMesačnýchVýdavkov[[#This Row],[Kód G/L]],Ostatné[Dátum žiadosti o šek],\">=\"&DATEVALUE(\" 1 \"&SúhrnMesačnýchVýdavkov[[#Headers],[Január]]&_ROK),Ostatné[Dátum žiadosti o šek],\"<=\"&D$4)","v":{"v":0,"d":"0.00 EUR"}},{"$f":"SUMIFS(RozpisVýdavkov[Suma šeku],RozpisVýdavkov[Kód G/L],SúhrnMesačnýchVýdavkov[[#This Row],[Kód G/L]],RozpisVýdavkov[Dátum vystavenia faktúry],\">=\"&E$3,RozpisVýdavkov[Dátum vystavenia faktúry],\"<=\"&E$4)+SUMIFS(Ostatné[Suma šeku],Ostatné[Kód G/L],SúhrnMesačnýchVýdavkov[[#This Row],[Kód G/L]],Ostatné[Dátum žiadosti o šek],\">=\"&DATEVALUE(\" 1 \"&SúhrnMesačnýchVýdavkov[[#Headers],[Február]]&_ROK),Ostatné[Dátum žiadosti o šek],\"<=\"&E$4)","v":{"v":0,"d":"0.00 EUR"}},{"$f":"SUMIFS(RozpisVýdavkov[Suma šeku],RozpisVýdavkov[Kód G/L],SúhrnMesačnýchVýdavkov[[#This Row],[Kód G/L]],RozpisVýdavkov[Dátum vystavenia faktúry],\">=\"&F$3,RozpisVýdavkov[Dátum vystavenia faktúry],\"<=\"&F$4)+SUMIFS(Ostatné[Suma šeku],Ostatné[Kód G/L],SúhrnMesačnýchVýdavkov[[#This Row],[Kód G/L]],Ostatné[Dátum žiadosti o šek],\">=\"&DATEVALUE(\" 1 \"&SúhrnMesačnýchVýdavkov[[#Headers],[Marec]]&_ROK),Ostatné[Dátum žiadosti o šek],\"<=\"&F$4)","v":{"v":0,"d":"0.00 EUR"}},{"$f":"SUMIFS(RozpisVýdavkov[Suma šeku],RozpisVýdavkov[Kód G/L],SúhrnMesačnýchVýdavkov[[#This Row],[Kód G/L]],RozpisVýdavkov[Dátum vystavenia faktúry],\">=\"&G$3,RozpisVýdavkov[Dátum vystavenia faktúry],\"<=\"&G$4)+SUMIFS(Ostatné[Suma šeku],Ostatné[Kód G/L],SúhrnMesačnýchVýdavkov[[#This Row],[Kód G/L]],Ostatné[Dátum žiadosti o šek],\">=\"&DATEVALUE(\" 1 \"&SúhrnMesačnýchVýdavkov[[#Headers],[Apríl]]&_ROK),Ostatné[Dátum žiadosti o šek],\"<=\"&G$4)","v":{"v":0,"d":"0.00 EUR"}},{"$f":"SUMIFS(RozpisVýdavkov[Suma šeku],RozpisVýdavkov[Kód G/L],SúhrnMesačnýchVýdavkov[[#This Row],[Kód G/L]],RozpisVýdavkov[Dátum vystavenia faktúry],\">=\"&H$3,RozpisVýdavkov[Dátum vystavenia faktúry],\"<=\"&H$4)+SUMIFS(Ostatné[Suma šeku],Ostatné[Kód G/L],SúhrnMesačnýchVýdavkov[[#This Row],[Kód G/L]],Ostatné[Dátum žiadosti o šek],\">=\"&DATEVALUE(\" 1 \"&SúhrnMesačnýchVýdavkov[[#Headers],[Máj]]&_ROK),Ostatné[Dátum žiadosti o šek],\"<=\"&H$4)","v":{"v":0,"d":"0.00 EUR"}},{"$f":"SUMIFS(RozpisVýdavkov[Suma šeku],RozpisVýdavkov[Kód G/L],SúhrnMesačnýchVýdavkov[[#This Row],[Kód G/L]],RozpisVýdavkov[Dátum vystavenia faktúry],\">=\"&I$3,RozpisVýdavkov[Dátum vystavenia faktúry],\"<=\"&I$4)+SUMIFS(Ostatné[Suma šeku],Ostatné[Kód G/L],SúhrnMesačnýchVýdavkov[[#This Row],[Kód G/L]],Ostatné[Dátum žiadosti o šek],\">=\"&DATEVALUE(\" 1 \"&SúhrnMesačnýchVýdavkov[[#Headers],[Jún]]&_ROK),Ostatné[Dátum žiadosti o šek],\"<=\"&I$4)","v":{"v":0,"d":"0.00 EUR"}},{"$f":"SUMIFS(RozpisVýdavkov[Suma šeku],RozpisVýdavkov[Kód G/L],SúhrnMesačnýchVýdavkov[[#This Row],[Kód G/L]],RozpisVýdavkov[Dátum vystavenia faktúry],\">=\"&J$3,RozpisVýdavkov[Dátum vystavenia faktúry],\"<=\"&J$4)+SUMIFS(Ostatné[Suma šeku],Ostatné[Kód G/L],SúhrnMesačnýchVýdavkov[[#This Row],[Kód G/L]],Ostatné[Dátum žiadosti o šek],\">=\"&DATEVALUE(\" 1 \"&SúhrnMesačnýchVýdavkov[[#Headers],[Júl]]&_ROK),Ostatné[Dátum žiadosti o šek],\"<=\"&J$4)","v":{"v":0,"d":"0.00 EUR"}},{"$f":"SUMIFS(RozpisVýdavkov[Suma šeku],RozpisVýdavkov[Kód G/L],SúhrnMesačnýchVýdavkov[[#This Row],[Kód G/L]],RozpisVýdavkov[Dátum vystavenia faktúry],\">=\"&K$3,RozpisVýdavkov[Dátum vystavenia faktúry],\"<=\"&K$4)+SUMIFS(Ostatné[Suma šeku],Ostatné[Kód G/L],SúhrnMesačnýchVýdavkov[[#This Row],[Kód G/L]],Ostatné[Dátum žiadosti o šek],\">=\"&DATEVALUE(\" 1 \"&SúhrnMesačnýchVýdavkov[[#Headers],[August]]&_ROK),Ostatné[Dátum žiadosti o šek],\"<=\"&K$4)","v":{"v":0,"d":"0.00 EUR"}},{"$f":"SUMIFS(RozpisVýdavkov[Suma šeku],RozpisVýdavkov[Kód G/L],SúhrnMesačnýchVýdavkov[[#This Row],[Kód G/L]],RozpisVýdavkov[Dátum vystavenia faktúry],\">=\"&L$3,RozpisVýdavkov[Dátum vystavenia faktúry],\"<=\"&L$4)+SUMIFS(Ostatné[Suma šeku],Ostatné[Kód G/L],SúhrnMesačnýchVýdavkov[[#This Row],[Kód G/L]],Ostatné[Dátum žiadosti o šek],\">=\"&DATEVALUE(\" 1 \"&SúhrnMesačnýchVýdavkov[[#Headers],[September]]&_ROK),Ostatné[Dátum žiadosti o šek],\"<=\"&L$4)","v":{"v":0,"d":"0.00 EUR"}},{"$f":"SUMIFS(RozpisVýdavkov[Suma šeku],RozpisVýdavkov[Kód G/L],SúhrnMesačnýchVýdavkov[[#This Row],[Kód G/L]],RozpisVýdavkov[Dátum vystavenia faktúry],\">=\"&M$3,RozpisVýdavkov[Dátum vystavenia faktúry],\"<=\"&M$4)+SUMIFS(Ostatné[Suma šeku],Ostatné[Kód G/L],SúhrnMesačnýchVýdavkov[[#This Row],[Kód G/L]],Ostatné[Dátum žiadosti o šek],\">=\"&DATEVALUE(\" 1 \"&SúhrnMesačnýchVýdavkov[[#Headers],[Október]]&_ROK),Ostatné[Dátum žiadosti o šek],\"<=\"&M$4)","v":{"v":0,"d":"0.00 EUR"}},{"$f":"SUMIFS(RozpisVýdavkov[Suma šeku],RozpisVýdavkov[Kód G/L],SúhrnMesačnýchVýdavkov[[#This Row],[Kód G/L]],RozpisVýdavkov[Dátum vystavenia faktúry],\">=\"&N$3,RozpisVýdavkov[Dátum vystavenia faktúry],\"<=\"&N$4)+SUMIFS(Ostatné[Suma šeku],Ostatné[Kód G/L],SúhrnMesačnýchVýdavkov[[#This Row],[Kód G/L]],Ostatné[Dátum žiadosti o šek],\">=\"&DATEVALUE(\" 1 \"&SúhrnMesačnýchVýdavkov[[#Headers],[November]]&_ROK),Ostatné[Dátum žiadosti o šek],\"<=\"&N$4)","v":{"v":0,"d":"0.00 EUR"}},{"$f":"SUMIFS(RozpisVýdavkov[Suma šeku],RozpisVýdavkov[Kód G/L],SúhrnMesačnýchVýdavkov[[#This Row],[Kód G/L]],RozpisVýdavkov[Dátum vystavenia faktúry],\">=\"&O$3,RozpisVýdavkov[Dátum vystavenia faktúry],\"<=\"&O$4)+SUMIFS(Ostatné[Suma šeku],Ostatné[Kód G/L],SúhrnMesačnýchVýdavkov[[#This Row],[Kód G/L]],Ostatné[Dátum žiadosti o šek],\">=\"&DATEVALUE(\" 1 \"&SúhrnMesačnýchVýdavkov[[#Headers],[December]]&_ROK),Ostatné[Dátum žiadosti o šek],\"<=\"&O$4)","v":{"v":0,"d":"0.00 EUR"}},{"$f":"SUM(SúhrnMesačnýchVýdavkov[[#This Row],[Január]:[December]])","v":{"v":0,"d":"0.00 EUR"}}]
[null,"Celková hodnota",null,{"$f":"SUBTOTAL(109,SúhrnMesačnýchVýdavkov[Január])","v":{"v":0,"d":"0.00 EUR"}},{"$f":"SUBTOTAL(109,SúhrnMesačnýchVýdavkov[Február])","v":{"v":0,"d":"0.00 EUR"}},{"$f":"SUBTOTAL(109,SúhrnMesačnýchVýdavkov[Marec])","v":{"v":0,"d":"0.00 EUR"}},{"$f":"SUBTOTAL(109,SúhrnMesačnýchVýdavkov[Apríl])","v":{"v":0,"d":"0.00 EUR"}},{"$f":"SUBTOTAL(109,SúhrnMesačnýchVýdavkov[Máj])","v":{"v":0,"d":"0.00 EUR"}},{"$f":"SUBTOTAL(109,SúhrnMesačnýchVýdavkov[Jún])","v":{"v":0,"d":"0.00 EUR"}},{"$f":"SUBTOTAL(109,SúhrnMesačnýchVýdavkov[Júl])","v":{"v":0,"d":"0.00 EUR"}},{"$f":"SUBTOTAL(109,SúhrnMesačnýchVýdavkov[August])","v":{"v":0,"d":"0.00 EUR"}},{"$f":"SUBTOTAL(109,SúhrnMesačnýchVýdavkov[September])","v":{"v":0,"d":"0.00 EUR"}},{"$f":"SUBTOTAL(109,SúhrnMesačnýchVýdavkov[Október])","v":{"v":0,"d":"0.00 EUR"}},{"$f":"SUBTOTAL(109,SúhrnMesačnýchVýdavkov[November])","v":{"v":0,"d":"0.00 EUR"}},{"$f":"SUBTOTAL(109,SúhrnMesačnýchVýdavkov[December])","v":{"v":0,"d":"0.00 EUR"}},{"$f":"SUBTOTAL(109,SúhrnMesačnýchVýdavkov[Spolu])","v":{"v":0,"d":"0.00 EUR"}}]

{"sheet":"ROZPIS VÝDAVKOV","index":2,"n_rows":6,"n_cols":10,"rows_kept":6,"merged":[[1,1,1,9],[2,1,2,5],[2,6,2,9]]}
[]
[null,"ROZPIS VÝDAVKOV"]
[]
[null,"Kód G/L","Dátum vystavenia faktúry","Č. faktúry","Žiadateľ","Suma šeku","Príjemca","Použitie šeku","Spôsob rozdelenia","Dátum zaevidovania"]
[null,1000,"Dátum",100,"Adam Kováč",{"v":750.75,"d":"750.75 EUR"},"Consolidated Messenger ","Zásielka","Pošta","Dátum"]
[null,7000,"Dátum",101,"Martin Baláž",{"v":2500,"d":"2,500.00 EUR"},"A. Datum Corporation ","2 stolové počítače","Kredit","Dátum"]

{"sheet":"CHARITA A SPONZOROVANIE","index":3,"n_rows":6,"n_cols":12,"rows_kept":6,"merged":[[1,1,1,11],[2,1,2,5],[2,6,2,11]]}
[]
[null,"CHARITA A SPONZOROVANIE"]
[]
[null,"Kód G/L","Dátum žiadosti o šek","Žiadateľ","Suma šeku","Príspevok v predchádzajúcom roku","Príjemca","Použité na","Schválil/-a","Kategória","Spôsob rozdelenia","Dátum zaevidovania"]
[null,12000,"Dátum","Zuzana Majorová",{"v":1000,"d":"1,000.00 EUR"},{"v":12,"d":"12.00 EUR"},"Umelecká škola ","Štipendiá","Martin Balážová","Umenie","Šek","Dátum"]
[null,11000,"Dátum","Zuzana Majorová",{"v":2500,"d":"2,500.00 EUR"},{"v":0,"d":"0.00 EUR"},"Wingtip Toys ","Komunita","Katarína Hudecová","Komunita","Šek","Dátum"]